{"text_format":"1","workbook":"xlsx","n_sheets":9,"sheets":["Instruktioner","1.GrundInfo","2.Betalningstjänster","3.RäntorOchKrediter","4.Specifika krav kravkatalog","5.Sammanställning","Blad1","Takpriser","Admin"],"not_rendered":{"charts":0,"images":2,"macros":1,"external_links":0,"defined_names":5,"comments":0,"pivot_tables":0},"unopened":[],"bounds":{"document_bytes":16777216,"sheet_cells":100000,"rows_first":2000,"rows_last":500,"rows_between":2000,"halvings":0,"cell_chars":16384,"cell_head_chars":4096},"cells_cut":0,"cells_raw":0,"read":"whole","date_system":"1900"}

{"sheet":"Instruktioner","index":0,"n_rows":72,"n_cols":12,"rows_kept":72,"cut":false,"hidden":false,"merged":[]}
[]
[]
[]
[null,null,null,null,null,null,null,null,null,null,null,"Beställaren fyller i gula fält."]
[null,null,null,null,null,null,null,null,null,null,null,"Leverantören fyller \ni gröna."]
["Avrop av Betalningstjänster med förnyad konkurrensutsättning "]
["Steg för steg hur mallen kan användas:"]
[]
["Observera när ni fyller i ett värde i de gula fälten så öppnas det upp en svarsflik."]
[]
["Steg 1 - Flik 1 Grundinfo "]
["Fyll i kontaktuppgifter och förutsättningar för den förnyade konkurrensutsättningen."]
[]
["Steg 2 - Flik 2 Betalningsförmedlingstjänster"]
["Fyll i uppskattade volymer för de tjänster ni önskar avropa. Ni fyller i volymer gällande antal konton och transaktioner. Leverantörer svarar med pris per enhet. "]
["Totalsumman efter summering visar på uppskattad kostnad för ett år."]
["Steg 3 - Flik 3 Räntor och krediter "]
["Ange uppgifter rörande checkräkningskrediter, koncernkonto, placeringskonton och valutakonton. "]
[" Det är viktigt att ni anger valuta och räntedatum i fält B4. "]
[]
["Steg 4 - Flik 4 Kravkatalog"]
["Ange de krav ni önskar ställa utifrån kravkatalogen och hur de kommer att värderas. "]
["Krav kan ställas som obligatoriskt krav eller utvärderingskriterier. "]
[]
["Ställa krav som som obligatoriskt krav:"]
["1. Välj område enligt kravkatalogen i kolumn ”Krav-katalogstyp”. "]
["2. Precisera ert krav i Kolumn ”Krav/utförande”. "]
["3. Välj ”ska” i kolumn ”Krav-typ”.  "]
[]
["Ställa krav som utvärderingskriterier (bör-krav) som kan besvaras med Ja eller nej av leverantören."]
["1. Välj område enligt kravkatalogen i kolumn ”Krav-katalogstyp”. "]
["2. Precisera ert krav i Kolumn ”Krav/utförande”."]
["3. Välj ”bör” i kolumn ”Krav-typ”. "]
["4. Skriv en beskrivning över hur kravet kommer värderas och/eller hur ni önskar att leverantören ska verifiera att krav uppfylls i kolumn ”Beskrivning av utvärdering”. "]
["5. Ange mervärdesavdrag som kommer att tillämpas om leverantören uppfyller kravet. Mervärdesavdraget anges i SEK. "]
["Tänk noga igenom storleken på angivet mervärdesavdrag – det ska motsvara den kostnad som ni är beredda att betala för att bör-kravet uppfylls. "]
["Om leverantör uppfyller krav kommer angiven summa för mervärdesavdrag att subtraheras från utvärderingssumman. "]
["6. När ni fått in svar från leverantörerna och gjort er bedömning fyller ni i kolumn ”Beställarkontroll” och anger om krav uppfylls helt eller ej.  "]
[]
["Ställa krav som utvärderingskriterier (bör-krav) som kommer att utvärderas, dvs krav som kräver en bedömning av beställaren:  "]
["1. Välj område enligt kravkatalogen i kolumn ”Krav-katalogstyp”."]
["2. Precisera ert krav i Kolumn ”Krav/utförande”. "]
["3. Välj ”bör” i kolumn ”Krav-typ”. "]
["4. Skriv en beskrivning över hur kravet kommer värderas och/eller hur ni önskar att leverantören ska verifiera att krav uppfylls i kolumn ”Beskrivning av utvärdering”."]
[" Här är det noga att ni är tydliga med hur kravet kommer att bedömas, om det finns olika möjliga mervärdesavdrag beroende på er bedömning av leverantörernas svar. "]
["5. Ange det högsta mervärdesavdrag som är möjligt att erhålla, om kravet uppfylls helt. Mervärdesavdraget anges i SEK. Tänk noga igenom storleken på angivet mervärdesavdrag – "]
["det ska motsvara den kostnad som ni är beredda att betala för att bör-kravet uppfylls. "]
["6. När ni fått in svar från leverantörerna och gjort er bedömning fyller ni i kolumn ”beställarkontroll” och anger om krav uppfylls helt, delvis eller inte alls."]
[" Om krav uppfylls delvis fyller ni det mervärde som erhållits i er utvärdering i kolumn ”Erhållet mervärdesavdrag”.  "]
[]
["Ställa krav på tillkommande tjänst enligt kravkatalog som obligatoriskt krav: "]
["1. Specificera typ av tjänst i kolumn ”Tillkommande tjänster enligt kravkatalog”."]
["2. Välj typ av enhet, t. ex. st i kolumn ”Typ av enhet”."]
["3. Ange ert uppskattade behov i antal i kolumn ”Antal enheter”. "]
["4. Skriv en beskrivning om hur kravet kommer att värderas i kolumn ”Kommentar”."]
["5. Välj ”ska” i kolumn ”Bör/ska”.  "]
[]
["Ställa krav på tillkommande tjänst enligt kravkatalog som bör-krav:  "]
["1. Specificera typ av tjänst i kolumn ”Tillkommande tjänster enligt kravkatalog”."]
["2. Välj typ av enhet, t. ex. st i kolumn ”Typ av enhet”."]
["3. Ange ert uppskattade behov i antal i kolumn ”Antal enheter”. "]
["4. Skriv en beskrivning om hur kravet kommer att värderas i kolumn ”Kommentar” ."]
["5. Välj ”bör” i kolumn ”Bör/ska” ."]
["6. I kolumn ”Kostnadseffekt” väljer hur ni önskar att värdera kravet. De olika alternativen redogör hur leverantör som inte uppfyller krav kommer att tilldelas ett belastningspris, som adderas till utvärderingssumman. "]
["a. Ökad utvärderingskostnad – innebär att ni anger ett fast belopp som kommer att adderas till leverantörens utvärderingssumma om kravet inte uppfylls. "]
["b. Faktor på konkurrerade pris – innebär att ni anger en faktor som kommer att multipliceras med det pris som den andra leverantören offererat för tjänsten i den förnyade konkurrensutsättningen.   "]
["7. Om ni väljer ”ökad utvärderingskostnad” fyll i det belastningspris som kommer adderas till leverantörens utvärderingssumma i kolumn ”Ökad utvärderingskostnad”. "]
["8. Om ni väljer ”faktor på konkurrerande pris” fyll i den faktor som ni önskar använda vid uträkning av belastningspris för leverantör som inte uppfyller krav i kolumn ”Prisfaktor på konkurrerande anbud”."]
[" När ni fått in svar från leverantörerna fyller ni det pris som den andra leverantören offererat i kolumn ”Pris konkurrerande anbud”. Om ingen av leverantörerna offererar tjänster utgår inget belastningspris."]
[]
["Sammanställning"]
["Under fliken sammanställning summeras flikarnas olika totalsummor till en slutlig anbudssumma. Efter att eventuella mervärdesavdrag som leverantören erhållit enligt flik 3 har dragits av erhålls en slutlig utvärderingssumma."]

{"sheet":"1.GrundInfo","index":1,"n_rows":41,"n_cols":9,"rows_kept":41,"cut":false,"hidden":false,"merged":[[30,1,30,2],[30,3,30,5],[33,1,33,2],[33,3,33,5],[34,1,34,2],[34,3,34,5],[31,1,31,2],[31,3,31,5],[8,3,8,5],[9,3,9,5],[9,1,9,2],[2,9,2,11],[5,9,5,11],[6,9,6,11],[7,9,7,11],[8,9,8,11],[2,7,2,8],[6,1,6,2],[7,1,7,2],[8,1,8,2],[24,1,24,2],[24,3,24,5],[9,9,9,11],[4,1,4,2],[4,3,4,5],[4,7,4,8],[4,9,4,11],[5,7,5,8],[6,7,6,8],[7,7,7,8],[8,7,8,8],[9,7,9,8],[5,1,5,2],[5,3,5,5],[6,3,6,5],[7,3,7,5],[15,9,15,11],[16,9,16,11],[17,9,17,11],[15,1,15,2],[16,1,16,2],[17,1,17,2],[15,3,15,5],[16,3,16,5],[17,3,17,5],[16,7,16,8],[17,7,17,8],[15,7,15,8],[25,1,25,2],[25,3,25,5],[27,1,27,2],[27,3,27,5],[28,1,28,2],[28,3,28,5],[40,1,40,2],[40,3,40,5],[36,1,36,2],[36,3,36,5],[37,1,37,2],[37,3,37,5],[39,1,39,2],[39,3,39,5]]}
[null,"Avropsförfrågan på ramavtal Banktjänster 2023 Betalningstjänster inkl. infrastruktur "]
[]
[null,"1 - Kontaktuppgifter",null,null,null,null,null,null,"Diarienummer eller motsvarande"]
[]
[null,"Avropande myndighet",null,null,null,null,null,"Leverantör"]
[null,"Org-nr",null,null,null,null,null,"Org-nr"]
[null,"Kontaktperson",null,null,null,null,null,"Kontaktperson"]
[null,"Telefon",null,null,null,null,null,"Telefon"]
[null,"E-post",null,null,null,null,null,"E-post"]
[null,"Adress",null,null,null,null,null,"Adress"]
[]
[]
[]
[null,"2 - Förutsättningar"]
[]
[null,"Sista dag för avropssvar",null,null,null,null,null,"Avtalstid från"]
[null,"Sista dag för frågor och svar",null,null,null,null,null,"Kontraktets löptid"]
[null,"Anbudets giltighetstid",null,null,null,null,null,"Möjlig förlängning till"]
[]
[]
[]
[]
[null,"3 - Avropet omfattar även nedanstående bolag:"]
[]
[null,"Bolagsnamn"]
[null,"OrgNr"]
[]
[null,"Bolagsnamn"]
[null,"OrgNr"]
[]
[null,"Bolagsnamn"]
[null,"OrgNr"]
[]
[null,"Bolagsnamn"]
[null,"OrgNr"]
[]
[null,"Bolagsnamn"]
[null,"OrgNr"]
[]
[null,"Bolagsnamn"]
[null,"OrgNr"]

{"sheet":"2.Betalningstjänster","index":2,"n_rows":103,"n_cols":7,"rows_kept":103,"cut":false,"hidden":false,"merged":[[205,1,205,4],[143,1,143,4],[166,1,166,4],[167,1,167,4],[168,1,168,4],[169,1,169,4],[200,1,202,1],[260,1,260,4],[218,1,218,4],[223,1,223,4],[234,1,235,1],[236,1,237,1],[245,1,245,4],[253,1,253,4],[6,2,6,3],[12,2,12,3],[17,2,17,3],[22,2,22,3],[31,2,31,3],[88,2,88,3],[93,2,93,3],[98,2,98,3],[41,2,41,3],[60,2,60,3],[64,2,64,3],[71,2,71,3],[85,2,85,3],[53,2,53,3],[42,2,42,3],[77,2,77,3]]}
[]
[]
[]
[]
[null,"Betalningstjänster inkl. infrastruktur"]
[]
[null,"1. Koncernkonto - infrastruktur","Uppskattad Volym vid anbudsutvärdering - per år",null,"Ange priser exklusive moms pris per enhet","Anbudsgivarens ev. kommentar/beskrivning","Totalsumma som kommer att användas vid anbudsutvärderingen"]
[null,"Pris per år för koncernkontostruktur","Antal konton",null,null,null,{"$f":"IFERROR(D8*E8,\"\")","v":0}]
[null,"Pris per år för valutor i koncernkontostrukturen. Pris per valuta","Antal valutor",null,null,null,{"$f":"IFERROR(D9*E9,\"\")","v":0}]
[null,"Pris per år för transaktionskonton i koncernkontostrukturen (underkonton)","Antal konton",null,null,null,{"$f":"IFERROR(D10*E10,\"\")","v":0}]
[null,"Pris per år för summeringskonto/samlingskonton i koncernkontostrukturen","Antal konton",null,null,null,0]
[]
[null,"2. Övriga bankkonton","Uppskattad Volym vid anbudsutvärdering - per år",null,"Ange priser exklusive moms pris per enhet","Anbudsgivarens ev. kommentar/beskrivning","Totalsumma som kommer att användas vid anbudsutvärderingen"]
[null,"Pris per år för fristående företagskonto","Antal konton",null,null,null,{"$f":"IFERROR(D14*E14,\"\")","v":0}]
[null,"Pris per år för fristående valutakonto","Antal konton",null,null,null,0]
[null,"Pris per år för placeringskonto","Antal konton",null,null,null,0]
[]
[null,"3. Internetbank","Uppskattad Volym vid anbudsutvärdering - per år",null,"Ange priser exklusive moms pris per enhet","Anbudsgivarens ev. kommentar/beskrivning","Totalsumma som kommer att användas vid anbudsutvärderingen"]
[null,"Pris per år för internetbankstjänst. Ange ert pris som årligt pris per koncernkontostruktur.","Antal",null,null,null,{"$f":"IFERROR(D19*E19,\"\")","v":0}]
[null,"Pris per år för internetbankstjänst. Ange ert pris som årligt pris för de organisationsnummer som ligger utanför UMs koncernkontostruktur.","Antal",null,null,null,0]
[null,"Pris per säkerhetsdosa eller liknande lösning","Antal",null,null,null,0]
[]
[null,"4. Inbetalningar","Uppskattad Volym vid anbudsutvärdering - per år",null,"Ange priser exklusive moms pris per enhet","Anbudsgivarens ev. kommentar/beskrivning","Totalsumma som kommer att användas vid anbudsutvärderingen"]
[null,"Pris per år för bankgironummer","Antal bankgironummer",null,null,null,{"$f":"IFERROR(D24*E24,\"\")","v":0}]
[null,"Pris per transaktion för ankommande inbetalning med förtryckt referensnummer, utan förtryckt referensnummer eller via internetbank","Antal ankommande betalningar",null,null,null,0]
[null,"Pris per transaktion för autogiro","Antal autogirobetalningar",null,null,null,0]
[null,"Pris för nyupplägg av autogiro via fil, pris per medgivande","Antal medgivande",null,null,null,0]
[null,"Pris för autogiromedgivande via internetbank, pris per medgivande","Antal medgivande",null,null,null,0]
[null,"Autogiro omförsök utöver ordinarie drag+ett omförsök, pris per omförsök (dvs pris för omförsök nr 2, 3)","Antal omförsök",null,null,null,0]
[null,"Pris för tjänsten elektronisk återredovisning av inbetalningar via fil, ange ert pris per år. Om anbudsgivaren önskar lämna pris/fil ska priset per fil multipliceras med 220 (antalet bankdagar/år)","Antal",null,null,null,0]
[]
[null,"5. Utbetalningar","Uppskattad Volym vid anbudsutvärdering - per år",null,"Ange priser exklusive moms pris per enhet","Anbudsgivarens ev. kommentar/beskrivning","Totalsumma som kommer att användas vid anbudsutvärderingen"]
[null,"Pris per transaktion för avgående betalning till Bankgirot","Antal avgående betalningar",null,null,null,{"$f":"IFERROR(D33*E33,\"\")","v":0}]
[null,"Pris per transaktion för avgående betalning till Plusgirot","Antal avgående betalningar",null,null,null,0]
[null,"Pris per transaktion för kontoinsättningar (insättning på mottagarens bankkonto, t.ex. för ekonomiskt bistånd) där antingen upphandlande myndighet eller banken är registerhållare","Antal avgående betalningar",null,null,null,0]
[null,"Pris per transaktion för manuella utbetalningar t. ex. manuellt via internetbank","Antal utbetalningar",null,null,null,0]
[null,"Pris per transaktion för utbetalningskort","Antal utbetalningskort",null,null,null,0]
[null,"Pris per avisering till betalningsmottagare","Antal aviseringar",null,null,null,0]
[null,"Redovisning av returnerade och ej inlösta utbetalningskort på prickningsbar fil, pris per redovisat utbetalningskort","Antal utbetalningskort",null,null,null,0]
[null,"Redovisning av returnerade och ej inlösta utbetalningskort på prickningsbar fil, pris per fil","Antal filer",null,null,null,0]
[]
[null,"6. Utlandsbetalningar","Uppskattad Volym vid anbudsutvärdering - per år",null,"Ange priser exklusive moms pris per enhet","Anbudsgivarens ev. kommentar/beskrivning","Totalsumma som kommer att användas vid anbudsutvärderingen"]
[null,"Utbetalningar"]
[null,"Pris per transaktion för EU-utbetalning i SEK eller EUR,(normal) inom EU. Betalningsuppdraget lämnas via fil eller internet","Antal utlandsbetalningar",null,null,null,{"$f":"IFERROR(D44*E44,\"\")","v":0}]
[null,"Pris per transaktion för EU-utbetalning i SEK och EUR (Express). Betalningsuppdraget lämnas via fil eller internet","Antal utlandsbetalningar",null,null,null,0]
[null,"Pris per transaktion för EU-utbetalning i övriga valutor (Normal). Betalningsuppdraget lämnas via fil eller internet","Antal utlandsbetalningar",null,null,null,0]
[null,"Pris per transaktion för EU-utbetalning i övriga valutor (Express). Betalningsuppdraget lämnas via fil eller internet","Antal utlandsbetalningar",null,null,null,0]
[null,"Pris per transaktion för utbetalning utanför EU i övriga valutor (Normal). Betalningsuppdraget lämnas via fil eller internet","Antal utlandsbetalningar",null,null,null,0]
[null,"Pris per transaktion för utbetalning utanför EU i övriga valutor (Express). Betalningsuppdraget lämnas via fil eller internet","Antal utlandsbetalningar",null,null,null,0]
[null,"Pris per reklamation av betalningsuppdrag","Antal utlandsbetalningar",null,null,null,0]
[null,"Pris per makulering av betalningsuppdrag","Antal utlandsbetalningar",null,null,null,0]
[null,"Pris för OUR-betalning","Antal utlandsbetalningar",null,null,null,0]
[]
[null,"Inbetalningar från utlandet"]
[null,"Pris per transaktion för inbetalning i SEK eller EUR inom EU","Antal utlandsbetalningar",null,null,null,{"$f":"IFERROR(D55*E55,\"\")","v":0}]
[null,"Pris per transaktion för EU-inbetalning övriga valutor","Antal utlandsbetalningar",null,null,null,0]
[null,"Pris per transaktion för inbetalning utanför EU -övriga valutor","Antal utlandsbetalningar",null,null,null,0]
[null,"Pris per reklamation av inbetalning","Antal utlandsbetalningar",null,null,null,0]
[null,"Pris per förhandsavisering för insättning på valutakonto","Antal utlandsbetalningar",null,null,null,0]
[]
[null,"7.Finansiella betalningar","Uppskattad Volym vid anbudsutvärdering - per år",null,"Ange priser exklusive moms pris per enhet","Anbudsgivarens ev. kommentar/beskrivning","Totalsumma som kommer att användas vid anbudsutvärderingen"]
[null,"Pris per transaktion för finansiell utbetalning","Antal finansiella betalningar",null,null,null,{"$f":"IFERROR(D62*E62,\"\")","v":0}]
[null,"Pris per transaktion för finansiell inbetalning","Antal finansiella betalningar",null,null,null,0]
[]
[null,"8. E-faktura","Uppskattad Volym vid anbudsutvärdering - per år",null,"Ange priser exklusive moms pris per enhet","Anbudsgivarens ev. kommentar/beskrivning","Totalsumma som kommer att användas vid anbudsutvärderingen"]
[null,"Pris per e-faktura inklusive distribution, lagring, presentation, exklusive kostnader för CTD","Antal transaktioner",null,null,null,{"$f":"IFERROR(D66*E66,\"\")","v":0}]
[null,"Pris per e-faktura endast presentation, exklusive kostnader för CTD","Antal transaktioner",null,null,null,0]
[null,"Pris per FUI","Antal  ",null,null,null,0]
[null,"Pris för uppstartskostnader/årsavgifter/annat","Antal",null,null,null,0]
[null,"Pris för eventuell abonnemangskostnad","Antal abonnemang",null,null,null,0]
[]
[null,"9. Bankid","Uppskattad Volym vid anbudsutvärdering - per år",null,"Ange priser exklusive moms pris per enhet","Anbudsgivarens ev. kommentar/beskrivning","Totalsumma som kommer att användas vid anbudsutvärderingen"]
[null,"Pris för anslutning","Antal anslutningar",null,null,null,{"$f":"IFERROR(D73*E73,\"\")","v":0}]
[null,"Pris per år för abonnemang ","Antal abonnemang",null,null,null,0]
[null,"Pris per transaktion per kontroll av identitet (inloggning)","Antal transaktioner",null,null,null,0]
[null,"Pris per transaktion per kontroll av underskrift (signering)","Antal transaktioner",null,null,null,0]
[]
[null,"10. Kontantsmarta lösningar","Uppskattad Volym vid anbudsutvärdering - per år",null,"Ange priser exklusive moms pris per enhet","Anbudsgivarens ev. kommentar/beskrivning","Totalsumma som kommer att användas vid anbudsutvärderingen"]
[null,"Swish Företag - Pris per nummer","Antal nummer",null,null,null,0]
[null,"Swish Företag - Pris per transaktioner","Antal transaktioner",null,null,null,0]
[null,"Swish Handel - Pris per nummer","Antal nummer",null,null,null,0]
[null,"Swish Handel - Pris per transaktioner","Antal transaktioner",null,null,null,0]
[null,"Utbetalningar Swish - Pris per transaktioner","Antal transaktioner",null,null,null,0]
[]
[]
[null,"11. Övriga betalningsförmedlingstjänster","Uppskattad Volym vid anbudsutvärdering - per år",null,"Ange priser exklusive moms pris per enhet","Anbudsgivarens ev. kommentar/beskrivning","Totalsumma som kommer att användas vid anbudsutvärderingen"]
[null,"Pris per år för elektroniskt kontoutdrag per bankkonto","Antal",null,null,null,{"$f":"IFERROR(D87*E87,\"\")","v":0}]
[]
[null,"12. Löneförmedling","Uppskattad Volym vid anbudsutvärdering - per år",null,"Ange priser exklusive moms pris per enhet","Anbudsgivarens ev. kommentar/beskrivning","Totalsumma som kommer att användas vid anbudsutvärderingen"]
[null,"Pris per transaktion för kontoinsättning av löneutbetalning","Antal",null,null,null,{"$f":"IFERROR(D90*E90,\"\")","v":0}]
[null,"Pris elektronisk lönespecifikation ","Antal",null,null,null,0]
[null,"Pris per utbetalningskort, inklusive utskrift, distribution och porto","Antal",null,null,null,0]
[]
[null,"13. Korttjänster","Uppskattad Volym vid anbudsutvärdering - per år",null,"Ange priser exklusive moms pris per enhet","Anbudsgivarens ev. kommentar/beskrivning","Totalsumma som kommer att användas vid anbudsutvärderingen"]
[null,"Pris för betalkort med UM:s betalningsansvar, per kort och år","Antal kort",null,null,null,{"$f":"IFERROR(D95*E95,\"\")","v":0}]
[null,"Pris för betalkort med personligt betalningsansvar, per kort och år","Antal kort",null,null,null,0]
[null,"Pris för inköpskort med UM:s betalningsansvar, per kort och år","Antal kort",null,null,null,0]
[]
[null,"14. Service, säkerhet och tillgänglighet","Uppskattad Volym vid anbudsutvärdering - per år",null,"Ange priser exklusive moms pris per enhet","Anbudsgivarens ev. kommentar/beskrivning","Totalsumma som kommer att användas vid anbudsutvärderingen"]
[null,"Pris för eventuell årskostnad för erbjuden service och tillgänglighet","Antal ",null,null,null,{"$f":"IFERROR(D100*E100,\"\")","v":0}]
[]
[]
[null,"Total anbudssumma",null,null,null,null,{"$f":"IF(COUNTIF(G8:G102,\"Båda*\")=0, SUM(G8:G102), \"Fel. Kontrollera tabellen övan\")","v":0}]

{"sheet":"3.RäntorOchKrediter","index":3,"n_rows":38,"n_cols":15,"rows_kept":38,"cut":false,"hidden":false,"merged":[[1,0,1,2],[4,1,4,2]]}
[]
["Räntor och krediter"]
[null,"Datum","Klockslag"]
["Avläsning ränta och valuta"]
["Ange maxbelopp för checkräkningskredit"]
["Instruktion: Anbudsgivaren ska lämna svar i tabellen i de rutor som är grönmarkerade. (Grå rutor är låsta och kan ej fyllas i)","CHECKRÄKNING (negativt saldo)","TILLGODOHAVANDE  KONCERNKONTO (positivt saldo)","TILLGODOHAVANDE     KONTO Placeringskonto/fondkonto",null,"TILLGODOHAVANDE \nVALUTAKONTO\n(vanliga valutor)","TILLGODOHAVANDE \nVALUTAKONTO\n(vanliga valutor)","TILLGODOHAVANDE \nVALUTAKONTO\n(vanliga valutor)","TILLGODOHAVANDE \nVALUTAKONTO\n(vanliga valutor)","TILLGODOHAVANDE \nVALUTAKONTO\n(övriga valutor)","TILLGODOHAVANDE \nVALUTAKONTO\n(övriga valutor)","TILLGODOHAVANDE \nVALUTAKONTO\n(övriga valutor)","TILLGODOHAVANDE \nVALUTAKONTO\n(övriga valutor)","TILLGODOHAVANDE \nVALUTAKONTO\n(övriga valutor)","TILLGODOHAVANDE \nVALUTAKONTO\n(övriga valutor)"]
[null,"SEK","SEK","SEK",null,"USD","EUR","GBP","DKK"]
["Snittsaldo - genomsnittlig summa på kontot under ett år"]
["Antal dagar per år ( negativt resp. positivt saldo)",null,null,null,null,null,null,null,null,365,365,365,365,365,365]
["Räntekapitalisering ","Kvartalsvis ","Årsvis","Årsvis",null,"Årsvis","Årsvis","Årsvis","Årsvis","Årsvis","Årsvis","Årsvis","Årsvis","Årsvis","Årsvis"]
["Ange dagräkningskonvention ","Act/360","Act/360","Act/360",null,"Act/360","Act/360","Act/365","Act/360","Act/360","Act/360","Act/360","Act/360","Act/360","Act/360"]
["Ränta på räntebasen den valda dagen"]
["Ange tillkommande/avgående marginal (%)"]
[" Ränta inkl marginal (%)",{"$f":"B13+B12","v":0},{"$f":"C12-C13","v":0},0,0,0,0,0,0,0,0,0,0,0,0]
["Årsränta inkl marginal (%)",{"$f":"IFERROR((((1+(B14/100)*(VLOOKUP(B10,Admin!$AM$15:$AN$19,2,0)/365))^(365/VLOOKUP(B10,Admin!$AM$15:$AN$19,2,0)))-1)*(365/365*100),\"\")","v":0},{"$f":"IFERROR((((1+(C14/100)*(VLOOKUP(C10,Admin!$AM$15:$AN$19,2,0)/365))^(365/VLOOKUP(C10,Admin!$AM$15:$AN$19,2,0)))-1)*(365/365*100),\"\")","v":0},{"$f":"IFERROR((((1+(D14/100)*(VLOOKUP(D10,Admin!$AM$15:$AN$19,2,0)/365))^(365/VLOOKUP(D10,Admin!$AM$15:$AN$19,2,0)))-1)*(365/365*100),\"\")","v":0},{"$f":"IFERROR((((1+(E14/100)*(VLOOKUP(E10,Admin!$AM$15:$AN$19,2,0)/365))^(365/VLOOKUP(E10,Admin!$AM$15:$AN$19,2,0)))-1)*(365/365*100),\"\")","v":""},{"$f":"IFERROR((((1+(F14/100)*(VLOOKUP(F10,Admin!$AM$15:$AN$19,2,0)/365))^(365/VLOOKUP(F10,Admin!$AM$15:$AN$19,2,0)))-1)*(365/365*100),\"\")","v":0},{"$f":"IFERROR((((1+(G14/100)*(VLOOKUP(G10,Admin!$AM$15:$AN$19,2,0)/365))^(365/VLOOKUP(G10,Admin!$AM$15:$AN$19,2,0)))-1)*(365/365*100),\"\")","v":0},{"$f":"IFERROR((((1+(H14/100)*(VLOOKUP(H10,Admin!$AM$15:$AN$19,2,0)/365))^(365/VLOOKUP(H10,Admin!$AM$15:$AN$19,2,0)))-1)*(365/365*100),\"\")","v":0},{"$f":"IFERROR((((1+(I14/100)*(VLOOKUP(I10,Admin!$AM$15:$AN$19,2,0)/365))^(365/VLOOKUP(I10,Admin!$AM$15:$AN$19,2,0)))-1)*(365/365*100),\"\")","v":0},{"$f":"IFERROR((((1+(J14/100)*(VLOOKUP(J10,Admin!$AM$15:$AN$19,2,0)/365))^(365/VLOOKUP(J10,Admin!$AM$15:$AN$19,2,0)))-1)*(365/365*100),\"\")","v":0},{"$f":"IFERROR((((1+(K14/100)*(VLOOKUP(K10,Admin!$AM$15:$AN$19,2,0)/365))^(365/VLOOKUP(K10,Admin!$AM$15:$AN$19,2,0)))-1)*(365/365*100),\"\")","v":0},{"$f":"IFERROR((((1+(L14/100)*(VLOOKUP(L10,Admin!$AM$15:$AN$19,2,0)/365))^(365/VLOOKUP(L10,Admin!$AM$15:$AN$19,2,0)))-1)*(365/365*100),\"\")","v":0},{"$f":"IFERROR((((1+(M14/100)*(VLOOKUP(M10,Admin!$AM$15:$AN$19,2,0)/365))^(365/VLOOKUP(M10,Admin!$AM$15:$AN$19,2,0)))-1)*(365/365*100),\"\")","v":0},{"$f":"IFERROR((((1+(N14/100)*(VLOOKUP(N10,Admin!$AM$15:$AN$19,2,0)/365))^(365/VLOOKUP(N10,Admin!$AM$15:$AN$19,2,0)))-1)*(365/365*100),\"\")","v":0},{"$f":"IFERROR((((1+(O14/100)*(VLOOKUP(O10,Admin!$AM$15:$AN$19,2,0)/365))^(365/VLOOKUP(O10,Admin!$AM$15:$AN$19,2,0)))-1)*(365/365*100),\"\")","v":0}]
["Namn på räntebas"]
[]
["Eventuell årlig kreditavgift (% på kreditram)"]
["Kreditavgift kronor",{"$f":"-ABS(B5*B18%)","v":0}]
["Bedömda valutakurser"]
["Eventuella årliga övriga kostnader (SEK)"]
[{"$f":"IF(COUNTA(F22:O22)-COUNTIF(F22:O22,\"\")<>0, \"obs. Fyll i valutakurser (rad 20)\",\"\")","v":""},null,null,null,null,{"$f":"IF(AND(F$7<>\"\",F$20=\"\",F$8<>\"\"), \"obs. Fyll i valutakursen (rad 20)\", \"\")","v":""},{"$f":"IF(AND(G$7<>\"\",G$20=\"\",G$8<>\"\"), \"obs. Fyll i valutakursen (rad 20)\", \"\")","v":""},"","","","","","","",""]
["Tilllämpas Inlåningsavgift?"]
["Fribelopp vid negativ ränta (ingen inlåningsavgift utgår)"]
["Inlåningsavgift (%)"]
["Inlåningsavgifter",{"$f":"IFERROR(IF(AND(B23=\"Ja\",B12<0),(B8-B24)*(B25*0.01),0),\"\")","v":0},{"$f":"IFERROR(IF(AND(C23=\"Ja\",C12<0),(C8-C24)*(C25*0.01),0),\"\")","v":0},{"$f":"IFERROR(IF(AND(D23=\"Ja\",D12<0),(D8-D24)*(D25*0.01),0),\"\")","v":0},0,{"$f":"IFERROR(IF(AND(F23=\"Ja\",F12<0, F8>F24),(F8-F24)*(F25*0.01)*IF(F20=\"\",1,F20),0), \"\")","v":0},{"$f":"IFERROR(IF(AND(G23=\"Ja\",G12<0, G8>G24),(G8-G24)*(G25*0.01)*IF(G20=\"\",1,G20),0), \"\")","v":0},0,0,0,0,0,0,0,0]
[]
[]
["Summa kostnader per år"]
[{"$f":"SUM(B30:O30)","v":0},{"$f":"IFERROR(MIN((ABS(B8*1)*IF(B20=\"\",1,B20)*MAX(B15,0)%/LOOKUP(B11,Admin!$AM$23:$AN$26)*(B9*LOOKUP(B11,Admin!$AM$28:$AN$31))),0)*-1+ABS(B19)+ABS(B21)+B26,\"\")+IFERROR(MAX((ABS(B8)*IF(B20=\"\",1,B20)*B15%/LOOKUP(B11,Admin!$AM$23:$AN$26)*(B9*LOOKUP(B11,Admin!$AM$28:$AN$31))),0),\"\")","v":0},{"$f":"IFERROR(MIN((ABS(C8*1)*IF(C20=\"\",1,C20)*MAX(C15,0)%/LOOKUP(C11,Admin!$AM$23:$AN$26)*(C9*LOOKUP(C11,Admin!$AM$28:$AN$31))),0)*-1+ABS(C19)+ABS(C21)+C26,\"\")","v":0},{"$f":"IFERROR(MIN((ABS(D8*1)*IF(D20=\"\",1,D20)*MAX(D15,0)%/LOOKUP(D11,Admin!$AM$23:$AN$26)*(D9*LOOKUP(D11,Admin!$AM$28:$AN$31))),0)*-1+ABS(D19)+ABS(D21)+D26,\"\")","v":0},{"$f":"IFERROR(MIN((ABS(E8*1)*IF(E20=\"\",1,E20)*MAX(E15,0)%/LOOKUP(E11,Admin!$AM$23:$AN$26)*(E9*LOOKUP(E11,Admin!$AM$28:$AN$31))),0)*-1+ABS(E19)+ABS(E21)+E26,\"\")","v":""},{"$f":"IFERROR(MIN((ABS(F8*1)*IF(F20=\"\",1,F20)*MAX(F15,0)%/LOOKUP(F11,Admin!$AM$23:$AN$26)*(F9*LOOKUP(F11,Admin!$AM$28:$AN$31))),0)*-1+ABS(F19)+ABS(F21)+F26,\"\")","v":0},{"$f":"IFERROR(MIN((ABS(G8*1)*IF(G20=\"\",1,G20)*MAX(G15,0)%/LOOKUP(G11,Admin!$AM$23:$AN$26)*(G9*LOOKUP(G11,Admin!$AM$28:$AN$31))),0)*-1+ABS(G19)+ABS(G21)+G26,\"\")","v":0},{"$f":"IFERROR(MIN((ABS(H8*1)*IF(H20=\"\",1,H20)*MAX(H15,0)%/LOOKUP(H11,Admin!$AM$23:$AN$26)*(H9*LOOKUP(H11,Admin!$AM$28:$AN$31))),0)*-1+ABS(H19)+ABS(H21)+H26,\"\")","v":0},{"$f":"IFERROR(MIN((ABS(I8*1)*IF(I20=\"\",1,I20)*MAX(I15,0)%/LOOKUP(I11,Admin!$AM$23:$AN$26)*(I9*LOOKUP(I11,Admin!$AM$28:$AN$31))),0)*-1+ABS(I19)+ABS(I21)+I26,\"\")","v":0},{"$f":"IFERROR(MIN((ABS(J8*1)*IF(J20=\"\",1,J20)*MAX(J15,0)%/LOOKUP(J11,Admin!$AM$23:$AN$26)*(J9*LOOKUP(J11,Admin!$AM$28:$AN$31))),0)*-1+ABS(J19)+ABS(J21)+J26,\"\")","v":0},{"$f":"IFERROR(MIN((ABS(K8*1)*IF(K20=\"\",1,K20)*MAX(K15,0)%/LOOKUP(K11,Admin!$AM$23:$AN$26)*(K9*LOOKUP(K11,Admin!$AM$28:$AN$31))),0)*-1+ABS(K19)+ABS(K21)+K26,\"\")","v":0},{"$f":"IFERROR(MIN((ABS(L8*1)*IF(L20=\"\",1,L20)*MAX(L15,0)%/LOOKUP(L11,Admin!$AM$23:$AN$26)*(L9*LOOKUP(L11,Admin!$AM$28:$AN$31))),0)*-1+ABS(L19)+ABS(L21)+L26,\"\")","v":0},{"$f":"IFERROR(MIN((ABS(M8*1)*IF(M20=\"\",1,M20)*MAX(M15,0)%/LOOKUP(M11,Admin!$AM$23:$AN$26)*(M9*LOOKUP(M11,Admin!$AM$28:$AN$31))),0)*-1+ABS(M19)+ABS(M21)+M26,\"\")","v":0},{"$f":"IFERROR(MIN((ABS(N8*1)*IF(N20=\"\",1,N20)*MAX(N15,0)%/LOOKUP(N11,Admin!$AM$23:$AN$26)*(N9*LOOKUP(N11,Admin!$AM$28:$AN$31))),0)*-1+ABS(N19)+ABS(N21)+N26,\"\")","v":0},{"$f":"IFERROR(MIN((ABS(O8*1)*IF(O20=\"\",1,O20)*MAX(O15,0)%/LOOKUP(O11,Admin!$AM$23:$AN$26)*(O9*LOOKUP(O11,Admin!$AM$28:$AN$31))),0)*-1+ABS(O19)+ABS(O21)+O26,\"\")","v":0}]
[]
["Summa intäkter per år"]
[{"$f":"SUM(B33:O33)","v":0},null,{"$f":"IFERROR(MAX((ABS(C8)*IF(C20=\"\",1,C20)*C15%/LOOKUP(C11,Admin!$AM$23:$AN$26)*(C9*LOOKUP(C11,Admin!$AM$28:$AN$31))),0),\"\")","v":0},{"$f":"IFERROR(MAX((ABS(D8)*IF(D20=\"\",1,D20)*D15%/LOOKUP(D11,Admin!$AM$23:$AN$26)*(D9*LOOKUP(D11,Admin!$AM$28:$AN$31))),0),\"\")","v":0},{"$f":"IFERROR(MAX((ABS(E8)*IF(E20=\"\",1,E20)*E15%/LOOKUP(E11,Admin!$AM$23:$AN$26)*(E9*LOOKUP(E11,Admin!$AM$28:$AN$31))),0),\"\")","v":""},{"$f":"IFERROR(MAX((ABS(F8)*IF(F20=\"\",1,F20)*F15%/LOOKUP(F11,Admin!$AM$23:$AN$26)*(F9*LOOKUP(F11,Admin!$AM$28:$AN$31))),0),\"\")","v":0},{"$f":"IFERROR(MAX((ABS(G8)*IF(G20=\"\",1,G20)*G15%/LOOKUP(G11,Admin!$AM$23:$AN$26)*(G9*LOOKUP(G11,Admin!$AM$28:$AN$31))),0),\"\")","v":0},{"$f":"IFERROR(MAX((ABS(H8)*IF(H20=\"\",1,H20)*H15%/LOOKUP(H11,Admin!$AM$23:$AN$26)*(H9*LOOKUP(H11,Admin!$AM$28:$AN$31))),0),\"\")","v":0},{"$f":"IFERROR(MAX((ABS(I8)*IF(I20=\"\",1,I20)*I15%/LOOKUP(I11,Admin!$AM$23:$AN$26)*(I9*LOOKUP(I11,Admin!$AM$28:$AN$31))),0),\"\")","v":0},{"$f":"IFERROR(MAX((ABS(J8)*IF(J20=\"\",1,J20)*J15%/LOOKUP(J11,Admin!$AM$23:$AN$26)*(J9*LOOKUP(J11,Admin!$AM$28:$AN$31))),0),\"\")","v":0},{"$f":"IFERROR(MAX((ABS(K8)*IF(K20=\"\",1,K20)*K15%/LOOKUP(K11,Admin!$AM$23:$AN$26)*(K9*LOOKUP(K11,Admin!$AM$28:$AN$31))),0),\"\")","v":0},{"$f":"IFERROR(MAX((ABS(L8)*IF(L20=\"\",1,L20)*L15%/LOOKUP(L11,Admin!$AM$23:$AN$26)*(L9*LOOKUP(L11,Admin!$AM$28:$AN$31))),0),\"\")","v":0},{"$f":"IFERROR(MAX((ABS(M8)*IF(M20=\"\",1,M20)*M15%/LOOKUP(M11,Admin!$AM$23:$AN$26)*(M9*LOOKUP(M11,Admin!$AM$28:$AN$31))),0),\"\")","v":0},{"$f":"IFERROR(MAX((ABS(N8)*IF(N20=\"\",1,N20)*N15%/LOOKUP(N11,Admin!$AM$23:$AN$26)*(N9*LOOKUP(N11,Admin!$AM$28:$AN$31))),0),\"\")","v":0},{"$f":"IFERROR(MAX((ABS(O8)*IF(O20=\"\",1,O20)*O15%/LOOKUP(O11,Admin!$AM$23:$AN$26)*(O9*LOOKUP(O11,Admin!$AM$28:$AN$31))),0),\"\")","v":0}]
[]
["Ange räntebasens sammansättning (t ex 50% Depo ON och 50% 1 veckas Stibor alternativt Euribor, Libor, Cibor)"]
["Ange grund för ränteändring"]
[]
["Kommentarer:"]

{"sheet":"4.Specifika krav kravkatalog","index":4,"n_rows":49,"n_cols":43,"rows_kept":49,"cut":false,"hidden":false,"merged":[[41,4,41,5],[42,4,42,5],[43,4,43,5],[44,4,44,5],[45,4,45,5],[46,4,46,5],[47,4,47,5],[48,4,48,5],[17,2,17,5],[18,2,18,5],[16,2,16,5],[15,2,15,5],[11,12,11,13],[12,12,12,13],[13,12,13,13],[14,12,14,13],[39,4,39,5],[40,4,40,5],[16,7,16,8],[17,7,17,8],[18,7,18,8],[16,9,16,10],[17,9,17,10],[39,7,39,8],[40,7,40,8],[1,7,1,8],[4,18,4,19],[5,18,5,19],[6,18,6,19],[7,18,7,19],[8,18,8,19],[9,18,9,19],[10,18,10,19],[39,13,39,14],[17,18,17,19],[18,18,18,19],[15,7,15,8],[15,9,15,10],[9,12,9,13],[9,14,9,16],[10,12,10,13],[10,14,10,16],[11,14,11,16],[12,14,12,16],[13,14,13,16],[14,14,14,16],[15,12,15,13],[15,14,15,16],[11,18,11,19],[7,20,7,21],[8,20,8,21],[9,20,9,21],[10,20,10,21],[6,20,6,21],[5,20,5,21],[4,20,4,21],[4,2,4,5],[4,7,4,8],[4,12,4,13],[4,14,4,16],[5,2,5,5],[5,7,5,8],[5,12,5,13],[5,14,5,16],[6,2,6,5],[6,7,6,8],[6,12,6,13],[6,14,6,16],[8,2,8,5],[9,2,9,5],[10,2,10,5],[8,12,8,13],[8,14,8,16],[12,18,12,19],[13,18,13,19],[14,18,14,19],[7,2,7,5],[7,7,7,8],[7,12,7,13],[7,14,7,16],[8,7,8,8],[9,7,9,8],[10,7,10,8],[11,2,11,5],[12,2,12,5],[13,2,13,5],[14,2,14,5],[11,7,11,8],[12,7,12,8],[13,7,13,8],[14,7,14,8],[12,20,12,21],[46,9,46,10],[47,9,47,10],[48,9,48,10],[41,13,41,14],[42,13,42,14],[43,13,43,14],[44,13,44,14],[45,13,45,14],[46,13,46,14],[47,13,47,14],[48,13,48,14],[41,9,41,10],[13,20,13,21],[14,20,14,21],[18,20,18,21],[17,12,17,13],[17,14,17,16],[16,12,16,13],[16,14,16,16],[18,12,18,13],[18,14,18,16],[15,18,15,19],[16,18,16,19],[48,7,48,8],[18,9,18,10],[1,20,1,21],[42,9,42,10],[43,9,43,10],[44,9,44,10],[45,9,45,10],[4,9,4,10],[5,9,5,10],[6,9,6,10],[7,9,7,10],[8,9,8,10],[9,9,9,10],[10,9,10,10],[11,9,11,10],[12,9,12,10],[13,9,13,10],[14,9,14,10],[39,9,39,10],[40,9,40,10],[16,20,16,21],[17,20,17,21],[15,20,15,21],[11,20,11,21],[41,7,41,8],[42,7,42,8],[43,7,43,8],[44,7,44,8],[45,7,45,8],[46,7,46,8],[47,7,47,8],[39,16,39,19],[41,16,41,19],[40,16,40,19],[40,13,40,14],[48,16,48,19],[47,16,47,19],[46,16,46,19],[45,16,45,19],[44,16,44,19],[43,16,43,19],[42,16,42,19],[39,20,39,21],[48,20,48,21],[47,20,47,21],[46,20,46,21],[45,20,45,21],[44,20,44,21],[43,20,43,21],[42,20,42,21],[41,20,41,21],[40,20,40,21]]}
[]
[null,"Krav enligt kravkatalog",null,null,null,null,null,"Högsta möjliga pris-avdrag","Möjliga abdrag",null,null,null,null,null,null,null,null,null,null,null,"Förändringar i Utvärderingskostnader",null,null,null,null,{"$f":"IFERROR(SUM(Z5:Z49),\"\")","v":0},{"$f":"IFERROR(SUM(AA5:AA49),\"\")","v":0}]
[]
[]
[null,"Krav-katalogstyp","Krav / Utförande",null,null,null,"Krav- typ*","Beskrivning av utvärdering",null,"Mervärdesavdrag",null,"Kravet Uppfylls*","Verifikat",null,"Kommentar Leverantör",null,null,"Beställar Kontroll*","Erhållet Mervärdesavdrag",null,"Krav-kommentar",null,null,null,null,"Kostnadsökning","Kostnadsavdrag"]
[null,null,null,null,null,null,null,null,null,null,null,null,null,null,null,null,null,null,null,null,null,null,null,{"$f":"IF(AND(G6=\"Bör\",L6=\"Ja\",R6<>\"Uppfylls Ej\"),IF(R6=\"Kravet Uppfylls\",ABS(J6),IF(ABS(S6)>0,ABS(S6),\"\")),\"\")","v":""},null,{"$f":"IF(IF(X6=\"\",\"\",MIN(X6,0))=0,\"\",IF(X6=\"\",\"\",MIN(X6,0)))","v":""},{"$f":"IF(IF(X6=\"\",\"\",MAX(X6,0))=0,\"\",IF(X6=\"\",\"\",MAX(X6,0)))","v":""},null,null,null,null,null,null,null,null,null,null,null,null,null,null,null,""]
[null,null,null,null,null,null,null,null,null,null,null,null,null,null,null,null,null,null,null,null,null,null,null,{"$f":"IF(AND(G7=\"Bör\",L7=\"Ja\",R7<>\"Uppfylls Ej\"),IF(R7=\"Kravet Uppfylls\",ABS(J7),IF(ABS(S7)>0,ABS(S7),\"\")),\"\")","v":""},null,{"$f":"IF(IF(X7=\"\",\"\",MIN(X7,0))=0,\"\",IF(X7=\"\",\"\",MIN(X7,0)))","v":""},{"$f":"IF(IF(X7=\"\",\"\",MAX(X7,0))=0,\"\",IF(X7=\"\",\"\",MAX(X7,0)))","v":""}]
[null,null,null,null,null,null,null,null,null,null,null,null,null,null,null,null,null,null,null,null,null,null,null,{"$f":"IF(AND(G8=\"Bör\",L8=\"Ja\",R8<>\"Uppfylls Ej\"),IF(R8=\"Kravet Uppfylls\",ABS(J8),IF(ABS(S8)>0,ABS(S8),\"\")),\"\")","v":""},null,"",""]
[null,null,null,null,null,null,null,null,null,null,null,null,null,null,null,null,null,null,null,null,null,null,null,"",null,"",""]
[null,null,null,null,null,null,null,null,null,null,null,null,null,null,null,null,null,null,null,null,null,null,null,"",null,"",""]
[null,null,null,null,null,null,null,null,null,null,null,null,null,null,null,null,null,null,null,null,null,null,null,"",null,"",""]
[null,null,null,null,null,null,null,null,null,null,null,null,null,null,null,null,null,null,null,null,null,null,null,"",null,"",""]
[null,null,null,null,null,null,null,null,null,null,null,null,null,null,null,null,null,null,null,null,null,null,null,"",null,"",""]
[null,null,null,null,null,null,null,null,null,null,null,null,null,null,null,null,null,null,null,null,null,null,null,"",null,"",""]
[null,null,null,null,null,null,null,null,null,null,null,null,null,null,null,null,null,null,null,null,null,null,null,"",null,"",""]
[null,null,null,null,null,null,"Ska",null,null,null,null,null,null,null,null,null,null,null,null,null,null,null,null,"",null,"",""]
[null,null,null,null,null,null,"Bör",null,null,null,null,null,null,null,null,null,null,null,null,null,"",null,null,"",null,"",""]
[null,null,null,null,null,null,"Ska",null,null,null,null,null,null,null,null,null,null,null,null,null,"",null,null,"",null,"",""]
[null,null,null,null,null,null,"Ska",null,null,null,null,null,null,null,null,null,null,null,null,null,"",null,null,"",null,"",""]
[null,null,null,null,null,null,null,null,null,null,null,null,null,null,null,null,null,null,null,null,{"$f":"IF(AND(G20=\"Bör\",J20=\"Ja\",P20<>\"Uppfylls Ej\"),IF(Q20=\"\",#REF!,Q20),\"\")","v":""}]
[]
[]
[]
[]
[]
[]
[]
[]
[]
[]
[]
[]
[]
[]
[]
[]
[]
[null,"Tillkommande tjänster enligt kravkatalog"]
[]
[null,"Tillkommande tjänster enligt kravkatalog","Typ av enhet","Antal enhter","Kommentar",null,"Bör/Ska","Kostnadseffekt",null,"Ökad utvärderingskostnad",null,"Prisfaktor på konkurrerande anbud","Tjänsten erbjuds","Kostnader per enhet om den erbjuds",null,null,"Krav-kommentar",null,null,null,"Pris Konkurrerande anbud",null,null,null,null,"Utärderingskostnadsökning","Kostnadsavdrag"]
[null,null,null,null,null,null,null,null,null,null,null,null,null,null,null,null,null,null,null,null,null,null,null,null,null,{"$f":"IF(B41=\"\",\"\",IF(M41=\"Ja\",N41*D41,IF(H41=\"Ökad utvärderingskostnad\",J41,L41*U41*D41)))","v":""}]
[null,null,null,null,null,null,null,null,null,null,null,null,null,null,null,null,null,null,null,null,null,null,null,null,null,""]
[null,null,null,null,null,null,null,null,null,null,null,null,null,null,null,null,null,null,null,null,null,null,null,null,null,""]
[null,null,null,null,null,null,null,null,null,null,null,null,null,null,null,null,null,null,null,null,null,null,null,null,null,""]
[null,null,null,null,null,null,null,null,null,null,null,null,null,null,null,null,null,null,null,null,null,null,null,null,null,""]
[null,null,null,null,null,null,null,null,null,null,null,null,null,null,null,null,null,null,null,null,null,null,null,null,null,""]
[null,null,null,null,null,null,null,null,null,null,null,null,null,null,null,null,null,null,null,null,null,null,null,null,null,""]
[null,null,null,null,null,null,null,null,null,null,null,null,null,null,null,null,null,null,null,null,null,null,null,null,null,""]
[null,null,null,null,null,null,null,null,null,null,null,null,null,null,null,null,null,null,null,null,null,null,null,null,null,""]

{"sheet":"5.Sammanställning","index":5,"n_rows":13,"n_cols":9,"rows_kept":13,"cut":false,"hidden":false,"merged":[[12,3,12,5],[10,3,10,5],[3,2,3,5],[6,3,6,5],[4,3,4,5],[5,3,5,5],[4,2,6,2],[8,3,8,5]]}
[]
[]
[]
[null,null,null,null,null,null,"Årliga kostnader","Avdrag och intäkter"]
[null,null,"Anbudspris","Betalningstjänster inkl. infrastruktur",null,null,{"$f":"IFERROR('2.Betalningstjänster'!G103,\"Fel. Kontrollera motsvarande flik\")","v":0}]
[null,null,null,"Räntor och krediter",null,null,{"$f":"'3.RäntorOchKrediter'!A30","v":0},{"$f":"'3.RäntorOchKrediter'!A33","v":0},{"$f":"IF('3.RäntorOchKrediter'!A22<>\"\", '3.RäntorOchKrediter'!A22 & \" för valutakonton på flik 2\",\"\")","v":""}]
[null,null,null,"Totalt",null,null,{"$f":"SUM(G5:G6)","v":0},{"$f":"SUM(H5:H6)","v":0}]
[]
[null,null,null,"Påslag/avdrag utvärdering",null,null,{"$f":"'4.Specifika krav kravkatalog'!Z2","v":0},{"$f":"'4.Specifika krav kravkatalog'!AA2","v":0}]
[]
[null,null,null,"Utvärderingssumma, kostnad per år",null,null,{"$f":"G7+G9","v":0},{"$f":"H7+H9","v":0}]
[]
[null,null,null,"Total utvärderingskostnad",null,null,{"$f":"G11-H11","v":0}]

{"sheet":"Blad1","index":6,"n_rows":15,"n_cols":1,"rows_kept":15,"cut":false,"hidden":true,"merged":[]}
[]
[]
[]
[]
["Service och tillgängligher"]
["Koncernkonto, funktionalitet och räntevillkor"]
["Valutering"]
["Betalningsförmedling"]
["Utbetalning av försörjningsstöd och övriga utbetalningar"]
[" Internetbank - behörighetsadministration"]
[" Lönespecifikation"]
["Korttjänster"]
["Pappersformat"]
["Finansiella tjänster"]
["Resekonto"]

{"sheet":"Takpriser","index":7,"n_rows":95,"n_cols":5,"rows_kept":95,"cut":false,"hidden":true,"merged":[]}
[]
[]
[]
[null,null,"Kommentar","Swedbank","Nordea"]
[null,"Pris per år för koncernkontostruktur. ",null,30000,10000]
[null,"Pris per år för transaktionskonton i koncernkontostrukturen.",null,300,1500]
[null,"Pris per år för summeringskonto/samlingskonton i koncernkontostrukturen.",null,300,1500]
[null,"Pris per år för (transaktion)konton utanför koncernkontostrukturen.",null,300,750]
[null,null,null,""]
[null,"2. Övriga bankkonton",null,"Pris, exklusive moms","Pris, exklusive moms"]
[null,"Pris per år för fristående valutakonto",null,300,450]
[null,"Pris per år för valutakonto i koncernstruktur",null,10000,1500]
[null,"Pris per år för placeringskonto",null,300,0]
[null,"Pris per år för fondkonto",null,300,0]
[null,"Pris per år för bankgirokonto",null,250,0]
[null,null,null,""]
[null,"3. Internetbank",null,"Pris, exklusive moms","Pris, exklusive moms"]
[null,"Pris per år för internetbankstjänst. Ange ert pris som årligt pris per koncernkontostruktur.",null,5000,2000]
[null,"Pris per år för internetbankstjänst. Ange ert pris som årligt pris för de organisationsnummer som ligger utanför UMs koncernkontostruktur.",null,0,2000]
[null,"Pris per säkerhetsdosa eller liknande lösning",null,0,0]
[null,"Pris per år för elektroniskt arkiv, med lagring av transaktioner i minst 7 år. Ange ert pris som årligt pris per konto",null,0,480]
[null,null,null,""]
[null,"4. Inbetalningar",null,"Pris, exklusive moms","Pris, exklusive moms"]
[null,"Pris per transaktion för ankommande inbetalning med förtryckt referensnummer, utan förtryckt referensnummer eller via internetbank",null,0.5,1]
[null,"Pris per transaktion för autogiro",null,1,1]
[null,"Pris för nyupplägg av autogiro via fil, pris per medgivande.",null,1,0]
[null,"Pris för autogiromedgivande via internetbank, pris per medgivande",null,5,0]
[null,"Autogiro omförsök utöver ordinarie drag+ett omförsök, pris per omförsök (dvs pris för omförsök nr 2, 3)",null,1,1]
[null,"Pris för tjänsten daglig samlad elektronisk återredovisning av inbetalningar via fil, 220 dgr per år,  ange ert pris som årligt pris per konto",null,4400,2000]
[null,"Pris per år för betalningstjänsten Swish företag eller liknande",null,500,500]
[null,"Pris per transaktion för betalningstjänsten Swish Företag eller liknande",null,1.2,1.25]
[null,"Pris per år för betalningstjänsten Swish handel eller liknande",null,2000,500]
[null,"Pris per transaktion för betalningstjänsten Swish handel eller liknande",null,1.2,1.25]
[null,null,null,""]
[null,"5. Utbetalningar",null,"Pris, exklusive moms","Pris, exklusive moms"]
[null,"Pris per transaktion för avgående girobetalning (elektroniska utbetalningar som skickas via fil) från Bankgiro till bankgiro/bankkonto",null,0.5,1]
[null,"Pris per transaktion för avgående girobetalning,elektroniska utbetalningar som skickas via fil från Bankgiro till Plusgiro. ",null,3,1]
[null,"Pris per transaktion för kontoinsättningar (insättning på mottagarens bankkonto, t.ex. för ekonomiskt bistånd) där antingen upphandlande myndighet eller banken är registerhållare",null,1.5,1]
[null,"Pris per transaktion för manuella utbetalningar tex manuellt via internetbank",null,0,1]
[null,"Pris per transaktion för utbetalningskort, exklusive porto",null,10,16]
[null,"Pris per avisering till betalningsmottagare, exklusive porto",null,7,16]
[null,"Redovisning av returnerade och ej inlösta utbetalningskort på prickningsbar fil, pris per redovisat utbetalningskort.",null,0,0]
[null,"Redovisning av returnerade och ej inlösta utbetalningskort på prickningsbar fil, pris per fil.",null,0,0]
[null,null,null,""]
[null,"6. Utlandsbetalningar",null,"Pris, exklusive moms","Pris, exklusive moms"]
[null,"Utbetalningar",null,0]
[null,"Pris per transaktion för EU-utbetalning i SEK eller EUR,(normal) inom EU. Betalningsuppdraget lämnas via fil eller internet",null,1.5,1.6]
[null,"Pris per transaktion för EU-utbetalning i SEK och EUR (Express). Betalningsuppdraget lämnas via fil eller internet",null,150,300]
[null,"Pris per transaktion för EU-utbetalning i övriga valutor (Normal). Betalningsuppdraget lämnas via fil eller internet",null,50,50]
[null,"Pris per transaktion för EU-utbetalning i övriga valutor (Express). Betalningsuppdraget lämnas via fil eller internet",null,150,350]
[null,"Pris per transaktion för utbetalning utanför EU i övriga valutor (Normal). Betalningsuppdraget lämnas via fil eller internet",null,50,50]
[null,"Pris per transaktion för utbetalning utanför EU i övriga valutor (Express). Betalningsuppdraget lämnas via fil eller internet",null,150,350]
[null,"Pris per reklamation av betalningsuppdrag",null,500,0]
[null,"Pris per makulering av betalningsuppdrag",null,0,0]
[null,"Pris för OUR-betalning",null,500,70]
[null,"Inbetalningar från utlandet",null,"Pris, exklusive moms","Pris, exklusive moms"]
[null,"Pris per transaktion för inbetalning i SEK eller EUR inom EU. ",null,1.5,1.6]
[null,"Pris per transaktion för EU-inbetalning övriga valutor",null,40,60]
[null,"Pris per transaktion för inbetalning utanför EU -övriga valutor",null,40,60]
[null,"Pris per reklamation av inbetalning",null,500,0]
[null,"Pris per förhandsavisering för insättning på valutakonto",null,0,0]
[null,null,null,""]
[null,"7.Finansiella betalningar",null,"Pris, exklusive moms","Pris, exklusive moms"]
[null,"Pris per transaktion för finansiell utbetalning",null,50,240]
[null,"Pris per transaktion för finansiell inbetalning",null,50,0]
[null,null,null,""]
[null,"8. E-faktura",null,"Pris, exklusive moms","Pris, exklusive moms"]
[null,"Pris per e-faktura inklusive distribution, lagring, presentation per faktura exklusive kostnader för CTD",null,1.75,2.5]
[null,"Pris per FUI",null,0,0]
[null,"Pris för uppstartskostnader/årsavgifter/annat",null,5000,1500]
[null,"Pris år för eventuell abonnemangskostnad",null,0,0]
[null,null,null,""]
[null,"9. Bankid",null,"Pris, exklusive moms","Pris, exklusive moms"]
[null,"Pris för anslutning",null,10000,10000]
[null,"Pris per år för abonnemang ",null,5500,6000]
[null,"Pris per transaktion per kontroll av identitet (inloggning)",null,0.19,0.15]
[null,"Pris per transaktion per kontroll av underskrift (signering)",null,0.19,0.4]
[null,null,null,""]
[null,"10. Övriga betalningsförmedlingstjänster",null,"Pris, exklusive moms","Pris, exklusive moms"]
[null,"Pris per år för elektroniskt kontoutdrag per bankkonto",null,0,2400]
[null,null,null,""]
[null,"11. Löneförmedling",null,"Pris, exklusive moms","Pris, exklusive moms"]
[null,"Pris per transaktion för löneutbetalning utan specifikation",null,1.5,1]
[null,"Pris per transaktion för löneutbetalning med elektronisk lönespecifikation",null,3,3.7]
[null,"Lönespecar i pappersformat, utskickaded via post",null,""]
[null,"Pris per transaktion för löneutbetalning med utbetalningskort, inklusive utskrift, distribution och porto",null,20,25]
[null,null,null,""]
[null,"12. Korttjänster",null,"Pris, exklusive moms","Pris, exklusive moms"]
[null,"Pris för betalkort med UM:s betalningsansvar, per kort och år",null,215,395]
[null,"Pris för betalkort med personligt betalningsansvar, per kort och år",null,250,595]
[null,null,null,""]
[null,null,null,""]
[null,"14. Service, säkerhet och tillgänglighet",null,"Pris, exklusive moms","Pris, exklusive moms"]
[null,"Pris för eventuell årskostnad för erbjuden service och tillgänglighet",null,0,50000]
[null,null,null,""]

{"sheet":"Admin","index":8,"n_rows":256,"n_cols":49,"rows_kept":256,"cut":false,"hidden":true,"merged":[]}
[]
[null,null,null,null,null,null,null,"Kravlistor",null,null,"Val"]
[null,"Faktor","Nordea","Swedbank",null,"Kategorier",null,"Kategori","Krav",null,"BörSka",null,null,null,"Utvärdering",null,null,null,null,null,null,null,null,null,null,null,null,null,"Utvärdering",null,"Valutor",null,"Bank","Nordea","Swedbank",null,null,null,"Data för beräkningar",null,null,"Land","Valuta",null,"Vanliga",null,"Räntebaser","Standardavvikelse","Innehåller negativa räntor"]
[null,"Pris per år för bankgirokonto",1,2,null,"1.1 Service/tillgänglighet ",null,"1.1 Service/tillgänglighet ","Tillgänglighet samt support efter kontorstid  ",null,"Bör",null,null,null,"Ja","Ja","Ja","Ja","Ja","Ja","Ja","Ja","Ja","Ja","Ja","Nej",null,null,"Beställar kontroll",null,"EUR",null,"Org-nr","9999-9999","8888-8888",null,null,null,null,null,null,"Afghan afghani","AFN",null,"EUR",null,"Stibor",0.14544965005583199]
[null,null,null,null,null,"1.2 Räntevillkor ",null,"1.1 Service/tillgänglighet ","Servicenivå för betalningsförmedling ",null,"Ska",null,null,null,"Nej",10,9,8,7,6,5,4,3,2,1,0,null,null,"Kravet Uppfylls",null,"DKK",null,"Kontaktperson","Anders Bankmansson","Johan Bankmansson",null,null,null,null,null,null,"European euro","EUR",null,"DKK",null,"VECU",0.19999990000000001]
[null,null,null,null,null,"1.3 Valuteringskrav ",null,"1.1 Service/tillgänglighet ","Servicenivå för löneförmedling ",null,null,null,null,null,0,9,8,7,6,5,4,3,2,1,0,null,null,null,"Uppfylls Delvis",null,"GBP",null,"Telefon",999,888,null,null,null,null,null,null,"European euro","EUR",null,"GBP",null,"VECI",0.19999990000000001,"NEJ"]
[null,null,null,null,null,"1.4 Bidragsutbetalningar ",null,"1.1 Service/tillgänglighet ","Kundteam och specialistfunktioner.  ",null,null,null,null,null,1,8,7,6,5,4,3,2,1,0,"Nej",null,null,null,"Uppfylls Ej",null,"USD",null,"E-post","Bankmansson@nordea.qq","Bankmansson@swedbank.qq",null,null,null,null,null,null,"Albanian lek","ALL",null,"USD"]
[null,null,null,null,null,"1.5.1 Lönespecifikation i pappersformat ",null,"1.1 Service/tillgänglighet ","Möjligheter/initiativ för effektivisering av UMs funktioner/arbetssätt. ",null,null,null,null,null,2,7,6,5,4,3,2,1,0,"Nej",null,null,null,null,null,null,"SEK",null,"Adress","Bankvägen 1","Bankvägen 2",null,null,null,null,null,null,"Algerian dinar","DZD",null,"NOK"]
[null,null,null,null,null,"1.5.2 Kontrolluppgift i pappersformat",null,"1.1 Service/tillgänglighet ","Annat service/tillgänglighet ",null,null,null,null,null,3,6,5,4,3,2,1,0,"Nej",null,null,null,null,null,null,null,null,null,null,null,null,null,null,null,null,null,null,"United States dollar","USD"]
[null,null,null,null,null,"1.5.3 Kontoutdrag eller annan betalningsstatistik på papper",null,"1.2 Räntevillkor ","Ränteberäkningsvillkor",null,null,null,null,null,4,5,4,3,2,1,0,"Nej",null,null,null,null,null,null,null,null,null,null,null,null,null,null,null,null,null,null,null,"European euro","EUR"]
[null,null,null,null,null,"1.6 Finansiella tjänster",null,"1.2 Räntevillkor ","Räntebas  ",null,null,null,null,null,5,4,3,2,1,0,"Nej",null,null,null,null,null,null,null,null,null,null,null,null,null,null,null,null,null,null,null,null,"Angolan kwanza","AOA"]
[null,null,null,null,null,"1.7 Resekonto",null,"1.2 Räntevillkor ","Räntekonvention",null,null,null,null,null,6,3,2,1,0,"Nej",null,null,null,null,null,null,null,null,null,null,null,null,null,null,null,null,null,null,null,null,null,"East Caribbean dollar","XCD"]
[null,null,null,null,"1.8 Pris",null,null,"1.2 Räntevillkor ","Kreditavgift",null,null,null,null,null,7,2,1,0,"Nej",null,null,null,null,null,null,null,null,null,null,null,null,null,null,null,null,null,null,null,null,null,null,"East Caribbean dollar","XCD"]
[null,null,null,null,null,"2.1 Service/tillgänglighet",null,"1.2 Räntevillkor ","Inlåningsavgift ",null,null,null,null,null,8,1,0,"Nej",null,null,null,null,null,null,null,null,null,null,null,null,null,null,null,null,null,null,null,null,"Saknas data",null,null,"Argentine peso","ARS"]
[null,null,null,null,null,"2.2 Betalterminaler",null,"1.2 Räntevillkor ","Leverantören ska/bör ge möjlighet för UM att utöka kredit under avtalstiden.",null,null,null,null,null,9,0,"Nej",null,null,null,null,null,null,null,null,null,null,null,null,null,null,null,null,null,null,null,null,null,"Halvårsvis",182.5,null,"Armenian dram","AMD"]
[null,null,null,null,null,"2.3 Pris",null,"1.2 Räntevillkor ","Konton under ett visst toppkonto att ska/bör hämta samma räntevillkor som gäller för toppkontot. Detta innebär att vid en ränteändring på toppkonto uppdateras räntevillkor automatiskt på alla underliggande konton.",null,null,null,null,null,10,"Nej",null,null,null,null,null,null,null,null,null,null,null,null,null,null,null,null,null,null,null,null,null,null,"Kvartalsvis ",91.25,null,"Aruban florin","AWG"]
[null,null,null,null,null,null,null,"1.2 Räntevillkor ","Annat räntevillkor ",null,null,null,null,null,null,null,null,null,null,null,null,null,null,null,null,null,null,null,null,null,null,null,null,null,null,null,null,null,null,null,null,"Saint Helena pound","SHP"]
[null,null,null,null,null,null,null,"1.3 Valuteringskrav ","Tillämpa förmånsvalutering på alla bankgiroinbetalningar vilket innebär att ränta räknas på det insatta beloppet redan fr.o.m. bokföringsdagen. ",null,null,null,null,null,null,null,null,null,null,null,null,null,null,null,null,null,null,null,null,null,null,null,null,null,null,null,null,null,"Månadsvis",30.416666666666668,null,"Australian dollar","AUD"]
[null,null,null,null,null,null,null,"1.3 Valuteringskrav ","Erbjuda att bokföringsdag och valutadag är samma dag för ankommande betalningar. ",null,null,null,null,null,null,null,null,null,null,null,null,null,null,null,null,null,null,null,null,null,null,null,null,null,null,null,null,null,"Årsvis",365,null,"European euro","EUR"]
[null,null,null,null,null,null,null,"1.3 Valuteringskrav ","Valutera lönelikviden från UMs konto bankdagen före löneutbetalning. ",null,null,null,null,null,null,null,null,null,null,null,null,null,null,null,null,null,null,null,null,null,null,null,null,null,null,null,null,null,0,0,null,"Azerbaijan manat","AZN"]
[null,null,null,null,null,null,null,"1.3 Valuteringskrav ","Belasta UMs konto samma dag som löneutbetalning ska ske, dvs lönelikvid valuteras samma dag.  ",null,null,null,null,null,null,null,null,null,null,null,null,null,null,null,null,null,null,null,null,null,null,null,null,null,null,null,null,null,0,0,null,"Bahamian dollar","BSD"]
[null,null,null,null,null,null,null,"1.3 Valuteringskrav ","Valutera avgående elektroniska betalningar via girosystem (bankgiro eller plusgiro) samma dag.",null,null,null,null,null,null,null,null,null,null,null,null,null,null,null,null,null,null,null,null,null,null,null,null,null,null,null,null,null,0,0,null,"Bahraini dinar","BHD"]
[null,null,null,null,null,null,null,"1.3 Valuteringskrav ","Annat valuteringskrav",null,null,null,null,null,null,null,null,null,null,null,null,null,null,null,null,null,null,null,null,null,null,null,null,null,null,null,null,null,"30/360",360,null,"Bangladeshi taka","BDT"]
[null,null,null,null,null,null,null,"1.4 Bidragsutbetalningar ","Leverantören ska/bör erbjuda en tjänst för utbetalningar till mottagare avseende ekonomiskt bidrag såsom t ex försörjningsstöd, där Leverantören svarar för registerhållning av uppgifter om mottagarkonton.",null,null,null,null,null,null,null,null,null,null,null,null,null,null,null,null,null,null,null,null,null,null,null,null,null,null,null,null,null,"Act/360",360,null,"Barbadian dollar","BBD"]
[null,null,null,null,null,null,null,"1.4 Bidragsutbetalningar ","tjänsten ska/bör omfatta elektronisk (filöverförd) betalning direkt till Leverantören för kontoinsättning på bankkonto eller gironummer.",null,null,null,null,null,null,null,null,null,null,null,null,null,null,null,null,null,null,null,null,null,null,null,null,null,null,null,null,null,"Act/365",365,null,"Belarusian ruble","BYN"]
[null,null,null,null,null,null,null,"1.4 Bidragsutbetalningar ","Tjänsten ska/bör därutöver omfatta att banken ger information till mottagare för vilka information om mottagarens kontonummer saknas, hur mottagaren kan anmäla sitt kontonummer.",null,null,null,null,null,null,null,null,null,null,null,null,null,null,null,null,null,null,null,null,null,null,null,null,null,null,null,null,null,"Act/Act",365,null,"European euro","EUR"]
[null,null,null,null,null,null,null,"1.4 Bidragsutbetalningar ","Annat bidragsutbetalningar ",null,null,null,null,null,null,null,null,null,null,null,null,null,null,null,null,null,null,null,null,null,null,null,null,null,null,null,null,null,0,0,null,"Belize dollar","BZD"]
[null,null,null,null,null,null,null,"1.5.1 Lönespecifikation i pappersformat ","Leverantören ska/bör kunna generera och distribuera lönespecifikationer i pappersformat ",null,null,null,null,null,null,null,null,null,null,null,null,null,null,null,null,null,null,null,null,null,null,null,null,null,null,null,null,null,"30/360",1,null,"West African CFA franc","XOF"]
[null,null,null,null,null,null,null,"1.5.1 Lönespecifikation i pappersformat ","Det ska/bör vara möjligt för löntagare/förtroendevald att kunna välja att få en lönespecifikation i pappersformat. ",null,null,null,null,null,null,null,null,null,null,null,null,null,null,null,null,null,null,null,null,null,null,null,null,null,null,null,null,null,"Act/360",1.0138888888888888,null,"Bermudian dollar","BMD"]
[null,null,null,null,null,null,null,"1.5.1 Lönespecifikation i pappersformat ","Lönespecifikation i pappersformat ska/bör vara löntagaren tillhanda dagen innan lönen utbetalas. ",null,null,null,null,null,null,null,null,null,null,null,null,null,null,null,null,null,null,null,null,null,null,null,null,null,null,null,null,null,"Act/365",1,null,"Bhutanese ngultrum","BTN"]
[null,null,null,null,null,null,null,"1.5.1 Lönespecifikation i pappersformat ","Annat lönespecifikation i pappersformat ",null,null,null,null,null,null,null,null,null,null,null,null,null,null,null,null,null,null,null,null,null,null,null,null,null,null,null,null,null,"Act/Act",1,null,"Bolivian boliviano","BOB"]
[null,null,null,null,null,null,null,"1.5.2 Kontrolluppgift i pappersformat","Leverantören ska/bör kunna generera och distribuera kontrolluppgifter i pappersformat.",null,null,null,null,null,null,null,null,null,null,null,null,null,null,null,null,null,null,null,null,null,null,null,null,null,null,null,null,null,0,0,null,"United States dollar","USD"]
[null,null,null,null,null,null,null,"1.5.2 Kontrolluppgift i pappersformat","Annat kontrolluppgift i pappersformat",null,null,null,null,null,null,null,null,null,null,null,null,null,null,null,null,null,null,null,null,null,null,null,null,null,null,null,null,null,"Fullt genomslag",0,null,"Bosnia and Herzegovina convertible mark","BAM"]
[null,null,null,null,null,null,null,"1.5.3 Kontoutdrag eller annan betalningsstatistik på papper","Leverantören ska/bör kunna generera kontoutdrag eller annan betalningsstatistik i pappersformat.",null,null,null,null,null,null,null,null,null,null,null,null,null,null,null,null,null,null,null,null,null,null,null,null,null,null,null,null,null,"Räntegolv",36074.999999999993,null,"Botswana pula","BWP"]
[null,null,null,null,null,null,null,"1.5.3 Kontoutdrag eller annan betalningsstatistik på papper","Annat kontoutdrag eller annan betalningsstatistik på papper",null,null,null,null,null,null,null,null,null,null,null,null,null,null,null,null,null,null,null,null,null,null,null,null,null,null,null,null,null,"Stiborgolv",36111.111111111109,null,"Brazilian real","BRL"]
[null,null,null,null,null,null,null,"1.6 Finansiella tjänster","Leverantören ska/bör erbjuda UM en \"intra-day-limit\" eller motsvarande vid transaktioner i utländsk valuta med inkommande och avgående flöden samma dag.",null,null,null,null,null,null,null,null,null,null,null,null,null,null,null,null,null,null,null,null,null,null,null,null,null,null,null,null,null,0,0,null,"United States dollar","USD"]
[null,null,null,null,null,null,null,"1.6 Finansiella tjänster","flödena ska/bör kunna mötas samma valutadag",null,null,null,null,null,null,null,null,null,null,null,null,null,null,null,null,null,null,null,null,null,null,null,null,null,null,null,null,null,"Fullt genomslag",0,null,"United States dollar","USD"]
[null,null,null,null,null,null,null,"1.6 Finansiella tjänster","Leverantören ska/bör erbjuda resekonto.",null,null,null,null,null,null,null,null,null,null,null,null,null,null,null,null,null,null,null,null,null,null,null,null,null,null,null,null,null,"Räntegolv",573675.80587487877,null,"Brunei dollar","BND"]
[null,null,null,null,null,null,null,"1.6 Finansiella tjänster","Annat finansiella tjänster",null,null,null,null,null,null,null,null,null,null,null,null,null,null,null,null,null,null,null,null,null,null,null,null,null,null,null,null,null,"Stiborgolv",574537.03703703708,null,"Bulgarian lev","BGN"]
[null,null,null,null,null,null,null,"1.7 Resekonto","Resekontot ska/bör kunna disponeras/belastas av fler än en användare inom respektive juridisk person inom UM.",null,null,null,null,null,null,null,null,null,null,null,null,null,null,null,null,null,null,null,null,null,null,null,null,null,null,null,null,null,0,0,null,"West African CFA franc","XOF"]
[null,null,null,null,null,null,null,"1.7 Resekonto","Fakturering av köp som belastas resekonto ska/bör kunna ske månadsvis.",null,null,null,null,null,null,null,null,null,null,null,null,null,null,null,null,null,null,null,null,null,null,null,null,null,null,null,null,null,"Fullt genomslag",0,null,"Burundi franc","BIF"]
[null,null,null,null,null,null,null,"1.7 Resekonto","Resekontot ska vara anslutet till/kompatibelt med mest förekommande bokningssystem för resor, s.k Global Distribution Systems (GDS).",null,null,null,null,null,null,null,null,null,null,null,null,null,null,null,null,null,null,null,null,null,null,null,null,null,null,null,null,null,"Räntegolv",23956.048852240117,null,"Cape Verdean escudo","CVE"]
[null,null,null,null,null,null,null,"1.7 Resekonto","Annat resekonto",null,null,null,null,null,null,null,null,null,null,null,null,null,null,null,null,null,null,null,null,null,null,null,null,null,null,null,null,null,"Stiborgolv",24000.000000000004,null,"Cambodian riel","KHR"]
[null,null,null,null,null,null,null,"1.8 Pris","Annat pris",null,null,null,null,null,null,null,null,null,null,null,null,null,null,null,null,null,null,null,null,null,null,null,null,null,null,null,null,null,0,0,null,"Central African CFA franc","XAF"]
[null,null,null,null,null,null,null,null,null,null,null,null,null,null,null,null,null,null,null,null,null,null,null,null,null,null,null,null,null,null,null,null,null,null,null,null,null,null,"Fullt genomslag",{"$error":"#N/A"},null,"Canadian dollar","CAD"]
[null,null,null,null,null,null,null,null,null,null,null,null,null,null,null,null,null,null,null,null,null,null,null,null,null,null,null,null,null,null,null,null,null,null,null,null,null,null,"Räntegolv",{"$error":"#N/A"},null,"United States dollar","USD"]
[null,null,null,null,null,null,null,null,null,null,null,null,null,null,null,null,null,null,null,null,null,null,null,null,null,null,null,null,null,null,null,null,null,null,null,null,null,null,"Stiborgolv",{"$error":"#N/A"},null,"Cayman Islands dollar","KYD"]
[null,null,null,null,null,null,null,null,null,null,null,null,null,null,null,null,null,null,null,null,null,null,null,null,null,null,null,null,null,null,null,null,null,null,null,null,null,null,0,0,null,"Central African CFA franc","XAF"]
[null,null,null,null,null,null,null,null,null,null,null,null,null,null,null,null,null,null,null,null,null,null,null,null,null,null,null,null,null,null,null,null,null,null,null,null,null,null,"Fullt genomslag",{"$error":"#N/A"},null,"Central African CFA franc","XAF"]
[null,null,null,null,null,null,null,null,null,null,null,null,null,null,null,null,null,null,null,null,null,null,null,null,null,null,null,null,null,null,null,null,null,null,null,null,null,null,"Räntegolv",{"$error":"#N/A"},null,"New Zealand dollar","NZD"]
[null,null,null,null,null,null,null,null,null,null,null,null,null,null,null,null,null,null,null,null,null,null,null,null,null,null,null,null,null,null,null,null,null,null,null,null,null,null,"Stiborgolv",{"$error":"#N/A"},null,"Chilean peso","CLP"]
[null,null,null,null,null,null,null,null,null,null,null,null,null,null,null,null,null,null,null,null,null,null,null,null,null,null,null,null,null,null,null,null,null,null,null,null,null,null,0,0,null,"Chinese Yuan Renminbi","CNY"]
[null,null,null,null,null,null,null,null,null,null,null,null,null,null,null,null,null,null,null,null,null,null,null,null,null,null,null,null,null,null,null,null,null,null,null,null,null,null,"Fullt genomslag",0,null,"Australian dollar","AUD"]
[null,null,null,null,null,null,null,null,null,null,null,null,null,null,null,null,null,null,null,null,null,null,null,null,null,null,null,null,null,null,null,null,null,null,null,null,null,null,"Räntegolv",{"$error":"#N/A"},null,"Australian dollar","AUD"]
[null,null,null,null,null,null,null,null,null,null,null,null,null,null,null,null,null,null,null,null,null,null,null,null,null,null,null,null,null,null,null,null,null,null,null,null,null,null,"Stiborgolv",{"$error":"#N/A"},null,"Colombian peso","COP"]
[null,null,null,null,null,null,null,null,null,null,null,null,null,null,null,null,null,null,null,null,null,null,null,null,null,null,null,null,null,null,null,null,null,null,null,null,null,null,0,0,null,"Comorian franc","KMF"]
[null,null,null,null,null,null,null,null,null,null,null,null,null,null,null,null,null,null,null,null,null,null,null,null,null,null,null,null,null,null,null,null,null,null,null,null,null,null,"Fullt genomslag",0,null,"Congolese franc","CDF"]
[null,null,null,null,null,null,null,null,null,null,null,null,null,null,null,null,null,null,null,null,null,null,null,null,null,null,null,null,null,null,null,null,null,null,null,null,null,null,"Räntegolv",{"$error":"#N/A"},null,"Central African CFA franc","XAF"]
[null,null,null,null,null,null,null,null,null,null,null,null,null,null,null,null,null,null,null,null,null,null,null,null,null,null,null,null,null,null,null,null,null,null,null,null,null,null,"Stiborgolv",{"$error":"#N/A"},null,"Cook Islands dollar","none"]
[null,null,null,null,null,null,null,null,null,null,null,null,null,null,null,null,null,null,null,null,null,null,null,null,null,null,null,null,null,null,null,null,null,null,null,null,null,null,0,0,null,"Costa Rican colon","CRC"]
[null,null,null,null,null,null,null,null,null,null,null,null,null,null,null,null,null,null,null,null,null,null,null,null,null,null,null,null,null,null,null,null,null,null,null,null,null,null,0,0,null,"West African CFA franc","XOF"]
[null,null,null,null,null,null,null,null,null,null,null,null,null,null,null,null,null,null,null,null,null,null,null,null,null,null,null,null,null,null,null,null,null,null,null,null,null,null,0,0,null,"Croatian kuna","HRK"]
[null,null,null,null,null,null,null,null,null,null,null,null,null,null,null,null,null,null,null,null,null,null,null,null,null,null,null,null,null,null,null,null,null,null,null,null,null,null,0,0,null,"Cuban peso","CUP"]
[null,null,null,null,null,null,null,null,null,null,null,null,null,null,null,null,null,null,null,null,null,null,null,null,null,null,null,null,null,null,null,null,null,null,null,null,null,null,0,0,null,"Netherlands Antillean guilder","ANG"]
[null,null,null,null,null,null,null,null,null,null,null,null,null,null,null,null,null,null,null,null,null,null,null,null,null,null,null,null,null,null,null,null,null,null,null,null,null,null,0,0,null,"European euro","EUR"]
[null,null,null,null,null,null,null,null,null,null,null,null,null,null,null,null,null,null,null,null,null,null,null,null,null,null,null,null,null,null,null,null,null,null,null,null,null,null,0,0,null,"Czech koruna","CZK"]
[null,null,null,null,null,null,null,null,null,null,null,null,null,null,null,null,null,null,null,null,null,null,null,null,null,null,null,null,null,null,null,null,null,null,null,null,null,null,0,0,null,"Danish krone","DKK"]
[null,null,null,null,null,null,null,null,null,null,null,null,null,null,null,null,null,null,null,null,null,null,null,null,null,null,null,null,null,null,null,null,null,null,null,null,null,null,0,0,null,"Djiboutian franc","DJF"]
[null,null,null,null,null,null,null,null,null,null,null,null,null,null,null,null,null,null,null,null,null,null,null,null,null,null,null,null,null,null,null,null,null,null,null,null,null,null,0,0,null,"East Caribbean dollar","XCD"]
[null,null,null,null,null,null,null,null,null,null,null,null,null,null,null,null,null,null,null,null,null,null,null,null,null,null,null,null,null,null,null,null,null,null,null,null,null,null,0,0,null,"Dominican peso","DOP"]
[null,null,null,null,null,null,null,null,null,null,null,null,null,null,null,null,null,null,null,null,null,null,null,null,null,null,null,null,null,null,null,null,null,null,null,null,null,null,0,0,null,"United States dollar","USD"]
[null,null,null,null,null,null,null,null,null,null,null,null,null,null,null,null,null,null,null,null,null,null,null,null,null,null,null,null,null,null,null,null,null,null,null,null,null,null,0,0,null,"Egyptian pound","EGP"]
[null,null,null,null,null,null,null,null,null,null,null,null,null,null,null,null,null,null,null,null,null,null,null,null,null,null,null,null,null,null,null,null,null,null,null,null,null,null,0,0,null,"United States dollar","USD"]
[null,null,null,null,null,null,null,null,null,null,null,null,null,null,null,null,null,null,null,null,null,null,null,null,null,null,null,null,null,null,null,null,null,null,null,null,null,null,0,0,null,"Central African CFA franc","XAF"]
[null,null,null,null,null,null,null,null,null,null,null,null,null,null,null,null,null,null,null,null,null,null,null,null,null,null,null,null,null,null,null,null,null,null,null,null,null,null,0,0,null,"Eritrean nakfa","ERN"]
[null,null,null,null,null,null,null,null,null,null,null,null,null,null,null,null,null,null,null,null,null,null,null,null,null,null,null,null,null,null,null,null,null,null,null,null,null,null,0,0,null,"European euro","EUR"]
[null,null,null,null,null,null,null,null,null,null,null,null,null,null,null,null,null,null,null,null,null,null,null,null,null,null,null,null,null,null,null,null,null,null,null,null,null,null,0,0,null,"Swazi lilangeni","SZL"]
[null,null,null,null,null,null,null,null,null,null,null,null,null,null,null,null,null,null,null,null,null,null,null,null,null,null,null,null,null,null,null,null,null,null,null,null,null,null,null,null,null,"Ethiopian birr","ETB"]
[null,null,null,null,null,null,null,null,null,null,null,null,null,null,null,null,null,null,null,null,null,null,null,null,null,null,null,null,null,null,null,null,null,null,null,null,null,null,null,null,null,"Falkland Islands pound","FKP"]
[null,null,null,null,null,null,null,null,null,null,null,null,null,null,null,null,null,null,null,null,null,null,null,null,null,null,null,null,null,null,null,null,null,null,null,null,null,null,null,null,null,"Faroese krona","none"]
[null,null,null,null,null,null,null,null,null,null,null,null,null,null,null,null,null,null,null,null,null,null,null,null,null,null,null,null,null,null,null,null,null,null,null,null,null,null,null,null,null,"Fijian dollar","FJD"]
[null,null,null,null,null,null,null,null,null,null,null,null,null,null,null,null,null,null,null,null,null,null,null,null,null,null,null,null,null,null,null,null,null,null,null,null,null,null,null,null,null,"European euro","EUR"]
[null,null,null,null,null,null,null,null,null,null,null,null,null,null,null,null,null,null,null,null,null,null,null,null,null,null,null,null,null,null,null,null,null,null,null,null,null,null,null,null,null,"European euro","EUR"]
[null,null,null,null,null,null,null,null,null,null,null,null,null,null,null,null,null,null,null,null,null,null,null,null,null,null,null,null,null,null,null,null,null,null,null,null,null,null,null,null,null,"European euro","EUR"]
[null,null,null,null,null,null,null,null,null,null,null,null,null,null,null,null,null,null,null,null,null,null,null,null,null,null,null,null,null,null,null,null,null,null,null,null,null,null,null,null,null,"CFP franc","XPF"]
[null,null,null,null,null,null,null,null,null,null,null,null,null,null,null,null,null,null,null,null,null,null,null,null,null,null,null,null,null,null,null,null,null,null,null,null,null,null,null,null,null,"Central African CFA franc","XAF"]
[null,null,null,null,null,null,null,null,null,null,null,null,null,null,null,null,null,null,null,null,null,null,null,null,null,null,null,null,null,null,null,null,null,null,null,null,null,null,null,null,null,"Gambian dalasi","GMD"]
[null,null,null,null,null,null,null,null,null,null,null,null,null,null,null,null,null,null,null,null,null,null,null,null,null,null,null,null,null,null,null,null,null,null,null,null,null,null,null,null,null,"Georgian lari","GEL"]
[null,null,null,null,null,null,null,null,null,null,null,null,null,null,null,null,null,null,null,null,null,null,null,null,null,null,null,null,null,null,null,null,null,null,null,null,null,null,null,null,null,"European euro","EUR"]
[null,null,null,null,null,null,null,null,null,null,null,null,null,null,null,null,null,null,null,null,null,null,null,null,null,null,null,null,null,null,null,null,null,null,null,null,null,null,null,null,null,"Ghanaian cedi","GHS"]
[null,null,null,null,null,null,null,null,null,null,null,null,null,null,null,null,null,null,null,null,null,null,null,null,null,null,null,null,null,null,null,null,null,null,null,null,null,null,null,null,null,"Gibraltar pound","GIP"]
[null,null,null,null,null,null,null,null,null,null,null,null,null,null,null,null,null,null,null,null,null,null,null,null,null,null,null,null,null,null,null,null,null,null,null,null,null,null,null,null,null,"European euro","EUR"]
[null,null,null,null,null,null,null,null,null,null,null,null,null,null,null,null,null,null,null,null,null,null,null,null,null,null,null,null,null,null,null,null,null,null,null,null,null,null,null,null,null,"Danish krone","DKK"]
[null,null,null,null,null,null,null,null,null,null,null,null,null,null,null,null,null,null,null,null,null,null,null,null,null,null,null,null,null,null,null,null,null,null,null,null,null,null,null,null,null,"East Caribbean dollar","XCD"]
[null,null,null,null,null,null,null,null,null,null,null,null,null,null,null,null,null,null,null,null,null,null,null,null,null,null,null,null,null,null,null,null,null,null,null,null,null,null,null,null,null,"European euro","EUR"]
[null,null,null,null,null,null,null,null,null,null,null,null,null,null,null,null,null,null,null,null,null,null,null,null,null,null,null,null,null,null,null,null,null,null,null,null,null,null,null,null,null,"United States dollar","USD"]
[null,null,null,null,null,null,null,null,null,null,null,null,null,null,null,null,null,null,null,null,null,null,null,null,null,null,null,null,null,null,null,null,null,null,null,null,null,null,null,null,null,"Guatemalan quetzal","GTQ"]
[null,null,null,null,null,null,null,null,null,null,null,null,null,null,null,null,null,null,null,null,null,null,null,null,null,null,null,null,null,null,null,null,null,null,null,null,null,null,null,null,null,"Guernsey Pound","GGP"]
[null,null,null,null,null,null,null,null,null,null,null,null,null,null,null,null,null,null,null,null,null,null,null,null,null,null,null,null,null,null,null,null,null,null,null,null,null,null,null,null,null,"Guinean franc","GNF"]
[null,null,null,null,null,null,null,null,null,null,null,null,null,null,null,null,null,null,null,null,null,null,null,null,null,null,null,null,null,null,null,null,null,null,null,null,null,null,null,null,null,"West African CFA franc","XOF"]
[null,null,null,null,null,null,null,null,null,null,null,null,null,null,null,null,null,null,null,null,null,null,null,null,null,null,null,null,null,null,null,null,null,null,null,null,null,null,null,null,null,"Guyanese dollar","GYD"]
[null,null,null,null,null,null,null,null,null,null,null,null,null,null,null,null,null,null,null,null,null,null,null,null,null,null,null,null,null,null,null,null,null,null,null,null,null,null,null,null,null,"Haitian gourde","HTG"]
[null,null,null,null,null,null,null,null,null,null,null,null,null,null,null,null,null,null,null,null,null,null,null,null,null,null,null,null,null,null,null,null,null,null,null,null,null,null,null,null,null,"Honduran lempira","HNL"]
[null,null,null,null,null,null,null,null,null,null,null,null,null,null,null,null,null,null,null,null,null,null,null,null,null,null,null,null,null,null,null,null,null,null,null,null,null,null,null,null,null,"Hong Kong dollar","HKD"]
[null,null,null,null,null,null,null,null,null,null,null,null,null,null,null,null,null,null,null,null,null,null,null,null,null,null,null,null,null,null,null,null,null,null,null,null,null,null,null,null,null,"Hungarian forint","HUF"]
[null,null,null,null,null,null,null,null,null,null,null,null,null,null,null,null,null,null,null,null,null,null,null,null,null,null,null,null,null,null,null,null,null,null,null,null,null,null,null,null,null,"Icelandic krona","ISK"]
[null,null,null,null,null,null,null,null,null,null,null,null,null,null,null,null,null,null,null,null,null,null,null,null,null,null,null,null,null,null,null,null,null,null,null,null,null,null,null,null,null,"Indian rupee","INR"]
[null,null,null,null,null,null,null,null,null,null,null,null,null,null,null,null,null,null,null,null,null,null,null,null,null,null,null,null,null,null,null,null,null,null,null,null,null,null,null,null,null,"Indonesian rupiah","IDR"]
[null,null,null,null,null,null,null,null,null,null,null,null,null,null,null,null,null,null,null,null,null,null,null,null,null,null,null,null,null,null,null,null,null,null,null,null,null,null,null,null,null,"SDR (Special Drawing Right)","XDR"]
[null,null,null,null,null,null,null,null,null,null,null,null,null,null,null,null,null,null,null,null,null,null,null,null,null,null,null,null,null,null,null,null,null,null,null,null,null,null,null,null,null,"Iranian rial","IRR"]
[null,null,null,null,null,null,null,null,null,null,null,null,null,null,null,null,null,null,null,null,null,null,null,null,null,null,null,null,null,null,null,null,null,null,null,null,null,null,null,null,null,"Iraqi dinar","IQD"]
[null,null,null,null,null,null,null,null,null,null,null,null,null,null,null,null,null,null,null,null,null,null,null,null,null,null,null,null,null,null,null,null,null,null,null,null,null,null,null,null,null,"European euro","EUR"]
[null,null,null,null,null,null,null,null,null,null,null,null,null,null,null,null,null,null,null,null,null,null,null,null,null,null,null,null,null,null,null,null,null,null,null,null,null,null,null,null,null,"Manx pound","IMP"]
[null,null,null,null,null,null,null,null,null,null,null,null,null,null,null,null,null,null,null,null,null,null,null,null,null,null,null,null,null,null,null,null,null,null,null,null,null,null,null,null,null,"Israeli new shekel","ILS"]
[null,null,null,null,null,null,null,null,null,null,null,null,null,null,null,null,null,null,null,null,null,null,null,null,null,null,null,null,null,null,null,null,null,null,null,null,null,null,null,null,null,"European euro","EUR"]
[null,null,null,null,null,null,null,null,null,null,null,null,null,null,null,null,null,null,null,null,null,null,null,null,null,null,null,null,null,null,null,null,null,null,null,null,null,null,null,null,null,"Jamaican dollar","JMD"]
[null,null,null,null,null,null,null,null,null,null,null,null,null,null,null,null,null,null,null,null,null,null,null,null,null,null,null,null,null,null,null,null,null,null,null,null,null,null,null,null,null,"Japanese yen","JPY"]
[null,null,null,null,null,null,null,null,null,null,null,null,null,null,null,null,null,null,null,null,null,null,null,null,null,null,null,null,null,null,null,null,null,null,null,null,null,null,null,null,null,"Jersey pound","JEP"]
[null,null,null,null,null,null,null,null,null,null,null,null,null,null,null,null,null,null,null,null,null,null,null,null,null,null,null,null,null,null,null,null,null,null,null,null,null,null,null,null,null,"Jordanian dinar","JOD"]
[null,null,null,null,null,null,null,null,null,null,null,null,null,null,null,null,null,null,null,null,null,null,null,null,null,null,null,null,null,null,null,null,null,null,null,null,null,null,null,null,null,"Kazakhstani tenge","KZT"]
[null,null,null,null,null,null,null,null,null,null,null,null,null,null,null,null,null,null,null,null,null,null,null,null,null,null,null,null,null,null,null,null,null,null,null,null,null,null,null,null,null,"Kenyan shilling","KES"]
[null,null,null,null,null,null,null,null,null,null,null,null,null,null,null,null,null,null,null,null,null,null,null,null,null,null,null,null,null,null,null,null,null,null,null,null,null,null,null,null,null,"Australian dollar","AUD"]
[null,null,null,null,null,null,null,null,null,null,null,null,null,null,null,null,null,null,null,null,null,null,null,null,null,null,null,null,null,null,null,null,null,null,null,null,null,null,null,null,null,"European euro","EUR"]
[null,null,null,null,null,null,null,null,null,null,null,null,null,null,null,null,null,null,null,null,null,null,null,null,null,null,null,null,null,null,null,null,null,null,null,null,null,null,null,null,null,"Kuwaiti dinar","KWD"]
[null,null,null,null,null,null,null,null,null,null,null,null,null,null,null,null,null,null,null,null,null,null,null,null,null,null,null,null,null,null,null,null,null,null,null,null,null,null,null,null,null,"Kyrgyzstani som","KGS"]
[null,null,null,null,null,null,null,null,null,null,null,null,null,null,null,null,null,null,null,null,null,null,null,null,null,null,null,null,null,null,null,null,null,null,null,null,null,null,null,null,null,"Lao kip","LAK"]
[null,null,null,null,null,null,null,null,null,null,null,null,null,null,null,null,null,null,null,null,null,null,null,null,null,null,null,null,null,null,null,null,null,null,null,null,null,null,null,null,null,"European euro","EUR"]
[null,null,null,null,null,null,null,null,null,null,null,null,null,null,null,null,null,null,null,null,null,null,null,null,null,null,null,null,null,null,null,null,null,null,null,null,null,null,null,null,null,"Lebanese pound","LBP"]
[null,null,null,null,null,null,null,null,null,null,null,null,null,null,null,null,null,null,null,null,null,null,null,null,null,null,null,null,null,null,null,null,null,null,null,null,null,null,null,null,null,"Lesotho loti","LSL"]
[null,null,null,null,null,null,null,null,null,null,null,null,null,null,null,null,null,null,null,null,null,null,null,null,null,null,null,null,null,null,null,null,null,null,null,null,null,null,null,null,null,"Liberian dollar","LRD"]
[null,null,null,null,null,null,null,null,null,null,null,null,null,null,null,null,null,null,null,null,null,null,null,null,null,null,null,null,null,null,null,null,null,null,null,null,null,null,null,null,null,"Libyan dinar","LYD"]
[null,null,null,null,null,null,null,null,null,null,null,null,null,null,null,null,null,null,null,null,null,null,null,null,null,null,null,null,null,null,null,null,null,null,null,null,null,null,null,null,null,"Swiss franc","CHF"]
[null,null,null,null,null,null,null,null,null,null,null,null,null,null,null,null,null,null,null,null,null,null,null,null,null,null,null,null,null,null,null,null,null,null,null,null,null,null,null,null,null,"European euro","EUR"]
[null,null,null,null,null,null,null,null,null,null,null,null,null,null,null,null,null,null,null,null,null,null,null,null,null,null,null,null,null,null,null,null,null,null,null,null,null,null,null,null,null,"European euro","EUR"]
[null,null,null,null,null,null,null,null,null,null,null,null,null,null,null,null,null,null,null,null,null,null,null,null,null,null,null,null,null,null,null,null,null,null,null,null,null,null,null,null,null,"Macanese pataca","MOP"]
[null,null,null,null,null,null,null,null,null,null,null,null,null,null,null,null,null,null,null,null,null,null,null,null,null,null,null,null,null,null,null,null,null,null,null,null,null,null,null,null,null,"Malagasy ariary","MGA"]
[null,null,null,null,null,null,null,null,null,null,null,null,null,null,null,null,null,null,null,null,null,null,null,null,null,null,null,null,null,null,null,null,null,null,null,null,null,null,null,null,null,"Malawian kwacha","MWK"]
[null,null,null,null,null,null,null,null,null,null,null,null,null,null,null,null,null,null,null,null,null,null,null,null,null,null,null,null,null,null,null,null,null,null,null,null,null,null,null,null,null,"Malaysian ringgit","MYR"]
[null,null,null,null,null,null,null,null,null,null,null,null,null,null,null,null,null,null,null,null,null,null,null,null,null,null,null,null,null,null,null,null,null,null,null,null,null,null,null,null,null,"Maldivian rufiyaa","MVR"]
[null,null,null,null,null,null,null,null,null,null,null,null,null,null,null,null,null,null,null,null,null,null,null,null,null,null,null,null,null,null,null,null,null,null,null,null,null,null,null,null,null,"West African CFA franc","XOF"]
[null,null,null,null,null,null,null,null,null,null,null,null,null,null,null,null,null,null,null,null,null,null,null,null,null,null,null,null,null,null,null,null,null,null,null,null,null,null,null,null,null,"European euro","EUR"]
[null,null,null,null,null,null,null,null,null,null,null,null,null,null,null,null,null,null,null,null,null,null,null,null,null,null,null,null,null,null,null,null,null,null,null,null,null,null,null,null,null,"United States dollar","USD"]
[null,null,null,null,null,null,null,null,null,null,null,null,null,null,null,null,null,null,null,null,null,null,null,null,null,null,null,null,null,null,null,null,null,null,null,null,null,null,null,null,null,"European euro","EUR"]
[null,null,null,null,null,null,null,null,null,null,null,null,null,null,null,null,null,null,null,null,null,null,null,null,null,null,null,null,null,null,null,null,null,null,null,null,null,null,null,null,null,"Mauritanian ouguiya","MRU"]
[null,null,null,null,null,null,null,null,null,null,null,null,null,null,null,null,null,null,null,null,null,null,null,null,null,null,null,null,null,null,null,null,null,null,null,null,null,null,null,null,null,"Mauritian rupee","MUR"]
[null,null,null,null,null,null,null,null,null,null,null,null,null,null,null,null,null,null,null,null,null,null,null,null,null,null,null,null,null,null,null,null,null,null,null,null,null,null,null,null,null,"European euro","EUR"]
[null,null,null,null,null,null,null,null,null,null,null,null,null,null,null,null,null,null,null,null,null,null,null,null,null,null,null,null,null,null,null,null,null,null,null,null,null,null,null,null,null,"Mexican peso","MXN"]
[null,null,null,null,null,null,null,null,null,null,null,null,null,null,null,null,null,null,null,null,null,null,null,null,null,null,null,null,null,null,null,null,null,null,null,null,null,null,null,null,null,"United States dollar","USD"]
[null,null,null,null,null,null,null,null,null,null,null,null,null,null,null,null,null,null,null,null,null,null,null,null,null,null,null,null,null,null,null,null,null,null,null,null,null,null,null,null,null,"Moldovan leu","MDL"]
[null,null,null,null,null,null,null,null,null,null,null,null,null,null,null,null,null,null,null,null,null,null,null,null,null,null,null,null,null,null,null,null,null,null,null,null,null,null,null,null,null,"European euro","EUR"]
[null,null,null,null,null,null,null,null,null,null,null,null,null,null,null,null,null,null,null,null,null,null,null,null,null,null,null,null,null,null,null,null,null,null,null,null,null,null,null,null,null,"Mongolian tugrik","MNT"]
[null,null,null,null,null,null,null,null,null,null,null,null,null,null,null,null,null,null,null,null,null,null,null,null,null,null,null,null,null,null,null,null,null,null,null,null,null,null,null,null,null,"European euro","EUR"]
[null,null,null,null,null,null,null,null,null,null,null,null,null,null,null,null,null,null,null,null,null,null,null,null,null,null,null,null,null,null,null,null,null,null,null,null,null,null,null,null,null,"East Caribbean dollar","XCD"]
[null,null,null,null,null,null,null,null,null,null,null,null,null,null,null,null,null,null,null,null,null,null,null,null,null,null,null,null,null,null,null,null,null,null,null,null,null,null,null,null,null,"Moroccan dirham","MAD"]
[null,null,null,null,null,null,null,null,null,null,null,null,null,null,null,null,null,null,null,null,null,null,null,null,null,null,null,null,null,null,null,null,null,null,null,null,null,null,null,null,null,"Mozambican metical","MZN"]
[null,null,null,null,null,null,null,null,null,null,null,null,null,null,null,null,null,null,null,null,null,null,null,null,null,null,null,null,null,null,null,null,null,null,null,null,null,null,null,null,null,"Myanmar kyat","MMK"]
[null,null,null,null,null,null,null,null,null,null,null,null,null,null,null,null,null,null,null,null,null,null,null,null,null,null,null,null,null,null,null,null,null,null,null,null,null,null,null,null,null,"Namibian dollar","NAD"]
[null,null,null,null,null,null,null,null,null,null,null,null,null,null,null,null,null,null,null,null,null,null,null,null,null,null,null,null,null,null,null,null,null,null,null,null,null,null,null,null,null,"Australian dollar","AUD"]
[null,null,null,null,null,null,null,null,null,null,null,null,null,null,null,null,null,null,null,null,null,null,null,null,null,null,null,null,null,null,null,null,null,null,null,null,null,null,null,null,null,"Nepalese rupee","NPR"]
[null,null,null,null,null,null,null,null,null,null,null,null,null,null,null,null,null,null,null,null,null,null,null,null,null,null,null,null,null,null,null,null,null,null,null,null,null,null,null,null,null,"European euro","EUR"]
[null,null,null,null,null,null,null,null,null,null,null,null,null,null,null,null,null,null,null,null,null,null,null,null,null,null,null,null,null,null,null,null,null,null,null,null,null,null,null,null,null,"CFP franc","XPF"]
[null,null,null,null,null,null,null,null,null,null,null,null,null,null,null,null,null,null,null,null,null,null,null,null,null,null,null,null,null,null,null,null,null,null,null,null,null,null,null,null,null,"New Zealand dollar","NZD"]
[null,null,null,null,null,null,null,null,null,null,null,null,null,null,null,null,null,null,null,null,null,null,null,null,null,null,null,null,null,null,null,null,null,null,null,null,null,null,null,null,null,"Nicaraguan cordoba","NIO"]
[null,null,null,null,null,null,null,null,null,null,null,null,null,null,null,null,null,null,null,null,null,null,null,null,null,null,null,null,null,null,null,null,null,null,null,null,null,null,null,null,null,"West African CFA franc","XOF"]
[null,null,null,null,null,null,null,null,null,null,null,null,null,null,null,null,null,null,null,null,null,null,null,null,null,null,null,null,null,null,null,null,null,null,null,null,null,null,null,null,null,"Nigerian naira","NGN"]
[null,null,null,null,null,null,null,null,null,null,null,null,null,null,null,null,null,null,null,null,null,null,null,null,null,null,null,null,null,null,null,null,null,null,null,null,null,null,null,null,null,"New Zealand dollar","NZD"]
[null,null,null,null,null,null,null,null,null,null,null,null,null,null,null,null,null,null,null,null,null,null,null,null,null,null,null,null,null,null,null,null,null,null,null,null,null,null,null,null,null,"Australian dollar","AUD"]
[null,null,null,null,null,null,null,null,null,null,null,null,null,null,null,null,null,null,null,null,null,null,null,null,null,null,null,null,null,null,null,null,null,null,null,null,null,null,null,null,null,"United States dollar","USD"]
[null,null,null,null,null,null,null,null,null,null,null,null,null,null,null,null,null,null,null,null,null,null,null,null,null,null,null,null,null,null,null,null,null,null,null,null,null,null,null,null,null,"North Korean won","KPW"]
[null,null,null,null,null,null,null,null,null,null,null,null,null,null,null,null,null,null,null,null,null,null,null,null,null,null,null,null,null,null,null,null,null,null,null,null,null,null,null,null,null,"Macedonian denar","MKD"]
[null,null,null,null,null,null,null,null,null,null,null,null,null,null,null,null,null,null,null,null,null,null,null,null,null,null,null,null,null,null,null,null,null,null,null,null,null,null,null,null,null,"Norwegian krone","NOK"]
[null,null,null,null,null,null,null,null,null,null,null,null,null,null,null,null,null,null,null,null,null,null,null,null,null,null,null,null,null,null,null,null,null,null,null,null,null,null,null,null,null,"Omani rial","OMR"]
[null,null,null,null,null,null,null,null,null,null,null,null,null,null,null,null,null,null,null,null,null,null,null,null,null,null,null,null,null,null,null,null,null,null,null,null,null,null,null,null,null,"Pakistani rupee","PKR"]
[null,null,null,null,null,null,null,null,null,null,null,null,null,null,null,null,null,null,null,null,null,null,null,null,null,null,null,null,null,null,null,null,null,null,null,null,null,null,null,null,null,"United States dollar","USD"]
[null,null,null,null,null,null,null,null,null,null,null,null,null,null,null,null,null,null,null,null,null,null,null,null,null,null,null,null,null,null,null,null,null,null,null,null,null,null,null,null,null,"Israeli new shekel","ILS"]
[null,null,null,null,null,null,null,null,null,null,null,null,null,null,null,null,null,null,null,null,null,null,null,null,null,null,null,null,null,null,null,null,null,null,null,null,null,null,null,null,null,"United States dollar","USD"]
[null,null,null,null,null,null,null,null,null,null,null,null,null,null,null,null,null,null,null,null,null,null,null,null,null,null,null,null,null,null,null,null,null,null,null,null,null,null,null,null,null,"Papua New Guinean kina","PGK"]
[null,null,null,null,null,null,null,null,null,null,null,null,null,null,null,null,null,null,null,null,null,null,null,null,null,null,null,null,null,null,null,null,null,null,null,null,null,null,null,null,null,"Paraguayan guarani","PYG"]
[null,null,null,null,null,null,null,null,null,null,null,null,null,null,null,null,null,null,null,null,null,null,null,null,null,null,null,null,null,null,null,null,null,null,null,null,null,null,null,null,null,"Peruvian sol","PEN"]
[null,null,null,null,null,null,null,null,null,null,null,null,null,null,null,null,null,null,null,null,null,null,null,null,null,null,null,null,null,null,null,null,null,null,null,null,null,null,null,null,null,"Philippine peso","PHP"]
[null,null,null,null,null,null,null,null,null,null,null,null,null,null,null,null,null,null,null,null,null,null,null,null,null,null,null,null,null,null,null,null,null,null,null,null,null,null,null,null,null,"New Zealand dollar","NZD"]
[null,null,null,null,null,null,null,null,null,null,null,null,null,null,null,null,null,null,null,null,null,null,null,null,null,null,null,null,null,null,null,null,null,null,null,null,null,null,null,null,null,"Polish zloty","PLN"]
[null,null,null,null,null,null,null,null,null,null,null,null,null,null,null,null,null,null,null,null,null,null,null,null,null,null,null,null,null,null,null,null,null,null,null,null,null,null,null,null,null,"European euro","EUR"]
[null,null,null,null,null,null,null,null,null,null,null,null,null,null,null,null,null,null,null,null,null,null,null,null,null,null,null,null,null,null,null,null,null,null,null,null,null,null,null,null,null,"United States dollar","USD"]
[null,null,null,null,null,null,null,null,null,null,null,null,null,null,null,null,null,null,null,null,null,null,null,null,null,null,null,null,null,null,null,null,null,null,null,null,null,null,null,null,null,"Qatari riyal","QAR"]
[null,null,null,null,null,null,null,null,null,null,null,null,null,null,null,null,null,null,null,null,null,null,null,null,null,null,null,null,null,null,null,null,null,null,null,null,null,null,null,null,null,"European euro","EUR"]
[null,null,null,null,null,null,null,null,null,null,null,null,null,null,null,null,null,null,null,null,null,null,null,null,null,null,null,null,null,null,null,null,null,null,null,null,null,null,null,null,null,"Romanian leu","RON"]
[null,null,null,null,null,null,null,null,null,null,null,null,null,null,null,null,null,null,null,null,null,null,null,null,null,null,null,null,null,null,null,null,null,null,null,null,null,null,null,null,null,"Russian ruble","RUB"]
[null,null,null,null,null,null,null,null,null,null,null,null,null,null,null,null,null,null,null,null,null,null,null,null,null,null,null,null,null,null,null,null,null,null,null,null,null,null,null,null,null,"Rwandan franc","RWF"]
[null,null,null,null,null,null,null,null,null,null,null,null,null,null,null,null,null,null,null,null,null,null,null,null,null,null,null,null,null,null,null,null,null,null,null,null,null,null,null,null,null,"United States dollar","USD"]
[null,null,null,null,null,null,null,null,null,null,null,null,null,null,null,null,null,null,null,null,null,null,null,null,null,null,null,null,null,null,null,null,null,null,null,null,null,null,null,null,null,"European euro","EUR"]
[null,null,null,null,null,null,null,null,null,null,null,null,null,null,null,null,null,null,null,null,null,null,null,null,null,null,null,null,null,null,null,null,null,null,null,null,null,null,null,null,null,"Saint Helena pound","SHP"]
[null,null,null,null,null,null,null,null,null,null,null,null,null,null,null,null,null,null,null,null,null,null,null,null,null,null,null,null,null,null,null,null,null,null,null,null,null,null,null,null,null,"East Caribbean dollar","XCD"]
[null,null,null,null,null,null,null,null,null,null,null,null,null,null,null,null,null,null,null,null,null,null,null,null,null,null,null,null,null,null,null,null,null,null,null,null,null,null,null,null,null,"East Caribbean dollar","XCD"]
[null,null,null,null,null,null,null,null,null,null,null,null,null,null,null,null,null,null,null,null,null,null,null,null,null,null,null,null,null,null,null,null,null,null,null,null,null,null,null,null,null,"European euro","EUR"]
[null,null,null,null,null,null,null,null,null,null,null,null,null,null,null,null,null,null,null,null,null,null,null,null,null,null,null,null,null,null,null,null,null,null,null,null,null,null,null,null,null,"European euro","EUR"]
[null,null,null,null,null,null,null,null,null,null,null,null,null,null,null,null,null,null,null,null,null,null,null,null,null,null,null,null,null,null,null,null,null,null,null,null,null,null,null,null,null,"East Caribbean dollar","XCD"]
[null,null,null,null,null,null,null,null,null,null,null,null,null,null,null,null,null,null,null,null,null,null,null,null,null,null,null,null,null,null,null,null,null,null,null,null,null,null,null,null,null,"Samoan tala","WST"]
[null,null,null,null,null,null,null,null,null,null,null,null,null,null,null,null,null,null,null,null,null,null,null,null,null,null,null,null,null,null,null,null,null,null,null,null,null,null,null,null,null,"European euro","EUR"]
[null,null,null,null,null,null,null,null,null,null,null,null,null,null,null,null,null,null,null,null,null,null,null,null,null,null,null,null,null,null,null,null,null,null,null,null,null,null,null,null,null,"Sao Tome and Principe dobra","STN"]
[null,null,null,null,null,null,null,null,null,null,null,null,null,null,null,null,null,null,null,null,null,null,null,null,null,null,null,null,null,null,null,null,null,null,null,null,null,null,null,null,null,"Saudi Arabian riyal","SAR"]
[null,null,null,null,null,null,null,null,null,null,null,null,null,null,null,null,null,null,null,null,null,null,null,null,null,null,null,null,null,null,null,null,null,null,null,null,null,null,null,null,null,"West African CFA franc","XOF"]
[null,null,null,null,null,null,null,null,null,null,null,null,null,null,null,null,null,null,null,null,null,null,null,null,null,null,null,null,null,null,null,null,null,null,null,null,null,null,null,null,null,"Serbian dinar","RSD"]
[null,null,null,null,null,null,null,null,null,null,null,null,null,null,null,null,null,null,null,null,null,null,null,null,null,null,null,null,null,null,null,null,null,null,null,null,null,null,null,null,null,"Seychellois rupee","SCR"]
[null,null,null,null,null,null,null,null,null,null,null,null,null,null,null,null,null,null,null,null,null,null,null,null,null,null,null,null,null,null,null,null,null,null,null,null,null,null,null,null,null,"Sierra Leonean leone","SLL"]
[null,null,null,null,null,null,null,null,null,null,null,null,null,null,null,null,null,null,null,null,null,null,null,null,null,null,null,null,null,null,null,null,null,null,null,null,null,null,null,null,null,"Singapore dollar","SGD"]
[null,null,null,null,null,null,null,null,null,null,null,null,null,null,null,null,null,null,null,null,null,null,null,null,null,null,null,null,null,null,null,null,null,null,null,null,null,null,null,null,null,"United States dollar","USD"]
[null,null,null,null,null,null,null,null,null,null,null,null,null,null,null,null,null,null,null,null,null,null,null,null,null,null,null,null,null,null,null,null,null,null,null,null,null,null,null,null,null,"Netherlands Antillean guilder","ANG"]
[null,null,null,null,null,null,null,null,null,null,null,null,null,null,null,null,null,null,null,null,null,null,null,null,null,null,null,null,null,null,null,null,null,null,null,null,null,null,null,null,null,"European euro","EUR"]
[null,null,null,null,null,null,null,null,null,null,null,null,null,null,null,null,null,null,null,null,null,null,null,null,null,null,null,null,null,null,null,null,null,null,null,null,null,null,null,null,null,"European euro","EUR"]
[null,null,null,null,null,null,null,null,null,null,null,null,null,null,null,null,null,null,null,null,null,null,null,null,null,null,null,null,null,null,null,null,null,null,null,null,null,null,null,null,null,"Solomon Islands dollar","SBD"]
[null,null,null,null,null,null,null,null,null,null,null,null,null,null,null,null,null,null,null,null,null,null,null,null,null,null,null,null,null,null,null,null,null,null,null,null,null,null,null,null,null,"Somali shilling","SOS"]
[null,null,null,null,null,null,null,null,null,null,null,null,null,null,null,null,null,null,null,null,null,null,null,null,null,null,null,null,null,null,null,null,null,null,null,null,null,null,null,null,null,"South African rand","ZAR"]
[null,null,null,null,null,null,null,null,null,null,null,null,null,null,null,null,null,null,null,null,null,null,null,null,null,null,null,null,null,null,null,null,null,null,null,null,null,null,null,null,null,"Pound sterling","GBP"]
[null,null,null,null,null,null,null,null,null,null,null,null,null,null,null,null,null,null,null,null,null,null,null,null,null,null,null,null,null,null,null,null,null,null,null,null,null,null,null,null,null,"South Korean won","KRW"]
[null,null,null,null,null,null,null,null,null,null,null,null,null,null,null,null,null,null,null,null,null,null,null,null,null,null,null,null,null,null,null,null,null,null,null,null,null,null,null,null,null,"South Sudanese pound","SSP"]
[null,null,null,null,null,null,null,null,null,null,null,null,null,null,null,null,null,null,null,null,null,null,null,null,null,null,null,null,null,null,null,null,null,null,null,null,null,null,null,null,null,"European euro","EUR"]
[null,null,null,null,null,null,null,null,null,null,null,null,null,null,null,null,null,null,null,null,null,null,null,null,null,null,null,null,null,null,null,null,null,null,null,null,null,null,null,null,null,"Sri Lankan rupee","LKR"]
[null,null,null,null,null,null,null,null,null,null,null,null,null,null,null,null,null,null,null,null,null,null,null,null,null,null,null,null,null,null,null,null,null,null,null,null,null,null,null,null,null,"Sudanese pound","SDG"]
[null,null,null,null,null,null,null,null,null,null,null,null,null,null,null,null,null,null,null,null,null,null,null,null,null,null,null,null,null,null,null,null,null,null,null,null,null,null,null,null,null,"Surinamese dollar","SRD"]
[null,null,null,null,null,null,null,null,null,null,null,null,null,null,null,null,null,null,null,null,null,null,null,null,null,null,null,null,null,null,null,null,null,null,null,null,null,null,null,null,null,"Norwegian krone","NOK"]
[null,null,null,null,null,null,null,null,null,null,null,null,null,null,null,null,null,null,null,null,null,null,null,null,null,null,null,null,null,null,null,null,null,null,null,null,null,null,null,null,null,"Swedish krona","SEK"]
[null,null,null,null,null,null,null,null,null,null,null,null,null,null,null,null,null,null,null,null,null,null,null,null,null,null,null,null,null,null,null,null,null,null,null,null,null,null,null,null,null,"Swiss franc","CHF"]
[null,null,null,null,null,null,null,null,null,null,null,null,null,null,null,null,null,null,null,null,null,null,null,null,null,null,null,null,null,null,null,null,null,null,null,null,null,null,null,null,null,"Syrian pound","SYP"]
[null,null,null,null,null,null,null,null,null,null,null,null,null,null,null,null,null,null,null,null,null,null,null,null,null,null,null,null,null,null,null,null,null,null,null,null,null,null,null,null,null,"New Taiwan dollar","TWD"]
[null,null,null,null,null,null,null,null,null,null,null,null,null,null,null,null,null,null,null,null,null,null,null,null,null,null,null,null,null,null,null,null,null,null,null,null,null,null,null,null,null,"Tajikistani somoni","TJS"]
[null,null,null,null,null,null,null,null,null,null,null,null,null,null,null,null,null,null,null,null,null,null,null,null,null,null,null,null,null,null,null,null,null,null,null,null,null,null,null,null,null,"Tanzanian shilling","TZS"]
[null,null,null,null,null,null,null,null,null,null,null,null,null,null,null,null,null,null,null,null,null,null,null,null,null,null,null,null,null,null,null,null,null,null,null,null,null,null,null,null,null,"Thai baht","THB"]
[null,null,null,null,null,null,null,null,null,null,null,null,null,null,null,null,null,null,null,null,null,null,null,null,null,null,null,null,null,null,null,null,null,null,null,null,null,null,null,null,null,"United States dollar","USD"]
[null,null,null,null,null,null,null,null,null,null,null,null,null,null,null,null,null,null,null,null,null,null,null,null,null,null,null,null,null,null,null,null,null,null,null,null,null,null,null,null,null,"West African CFA franc","XOF"]
[null,null,null,null,null,null,null,null,null,null,null,null,null,null,null,null,null,null,null,null,null,null,null,null,null,null,null,null,null,null,null,null,null,null,null,null,null,null,null,null,null,"New Zealand dollar","NZD"]
[null,null,null,null,null,null,null,null,null,null,null,null,null,null,null,null,null,null,null,null,null,null,null,null,null,null,null,null,null,null,null,null,null,null,null,null,null,null,null,null,null,"Tongan pa’anga","TOP"]
[null,null,null,null,null,null,null,null,null,null,null,null,null,null,null,null,null,null,null,null,null,null,null,null,null,null,null,null,null,null,null,null,null,null,null,null,null,null,null,null,null,"Trinidad and Tobago dollar","TTD"]
[null,null,null,null,null,null,null,null,null,null,null,null,null,null,null,null,null,null,null,null,null,null,null,null,null,null,null,null,null,null,null,null,null,null,null,null,null,null,null,null,null,"Pound sterling","GBP"]
[null,null,null,null,null,null,null,null,null,null,null,null,null,null,null,null,null,null,null,null,null,null,null,null,null,null,null,null,null,null,null,null,null,null,null,null,null,null,null,null,null,"Tunisian dinar","TND"]
[null,null,null,null,null,null,null,null,null,null,null,null,null,null,null,null,null,null,null,null,null,null,null,null,null,null,null,null,null,null,null,null,null,null,null,null,null,null,null,null,null,"Turkish lira","TRY"]
[null,null,null,null,null,null,null,null,null,null,null,null,null,null,null,null,null,null,null,null,null,null,null,null,null,null,null,null,null,null,null,null,null,null,null,null,null,null,null,null,null,"Turkmen manat","TMT"]
[null,null,null,null,null,null,null,null,null,null,null,null,null,null,null,null,null,null,null,null,null,null,null,null,null,null,null,null,null,null,null,null,null,null,null,null,null,null,null,null,null,"United States dollar","USD"]
[null,null,null,null,null,null,null,null,null,null,null,null,null,null,null,null,null,null,null,null,null,null,null,null,null,null,null,null,null,null,null,null,null,null,null,null,null,null,null,null,null,"Australian dollar","AUD"]
[null,null,null,null,null,null,null,null,null,null,null,null,null,null,null,null,null,null,null,null,null,null,null,null,null,null,null,null,null,null,null,null,null,null,null,null,null,null,null,null,null,"Ugandan shilling","UGX"]
[null,null,null,null,null,null,null,null,null,null,null,null,null,null,null,null,null,null,null,null,null,null,null,null,null,null,null,null,null,null,null,null,null,null,null,null,null,null,null,null,null,"Ukrainian hryvnia","UAH"]
[null,null,null,null,null,null,null,null,null,null,null,null,null,null,null,null,null,null,null,null,null,null,null,null,null,null,null,null,null,null,null,null,null,null,null,null,null,null,null,null,null,"UAE dirham","AED"]
[null,null,null,null,null,null,null,null,null,null,null,null,null,null,null,null,null,null,null,null,null,null,null,null,null,null,null,null,null,null,null,null,null,null,null,null,null,null,null,null,null,"Pound sterling","GBP"]
[null,null,null,null,null,null,null,null,null,null,null,null,null,null,null,null,null,null,null,null,null,null,null,null,null,null,null,null,null,null,null,null,null,null,null,null,null,null,null,null,null,"United States dollar","USD"]
[null,null,null,null,null,null,null,null,null,null,null,null,null,null,null,null,null,null,null,null,null,null,null,null,null,null,null,null,null,null,null,null,null,null,null,null,null,null,null,null,null,"Uruguayan peso","UYU"]
[null,null,null,null,null,null,null,null,null,null,null,null,null,null,null,null,null,null,null,null,null,null,null,null,null,null,null,null,null,null,null,null,null,null,null,null,null,null,null,null,null,"United States dollar","USD"]
[null,null,null,null,null,null,null,null,null,null,null,null,null,null,null,null,null,null,null,null,null,null,null,null,null,null,null,null,null,null,null,null,null,null,null,null,null,null,null,null,null,"Uzbekistani som","UZS"]
[null,null,null,null,null,null,null,null,null,null,null,null,null,null,null,null,null,null,null,null,null,null,null,null,null,null,null,null,null,null,null,null,null,null,null,null,null,null,null,null,null,"Vanuatu vatu","VUV"]
[null,null,null,null,null,null,null,null,null,null,null,null,null,null,null,null,null,null,null,null,null,null,null,null,null,null,null,null,null,null,null,null,null,null,null,null,null,null,null,null,null,"European euro","EUR"]
[null,null,null,null,null,null,null,null,null,null,null,null,null,null,null,null,null,null,null,null,null,null,null,null,null,null,null,null,null,null,null,null,null,null,null,null,null,null,null,null,null,"Venezuelan bolivar","VES"]
[null,null,null,null,null,null,null,null,null,null,null,null,null,null,null,null,null,null,null,null,null,null,null,null,null,null,null,null,null,null,null,null,null,null,null,null,null,null,null,null,null,"Vietnamese dong","VND"]
[null,null,null,null,null,null,null,null,null,null,null,null,null,null,null,null,null,null,null,null,null,null,null,null,null,null,null,null,null,null,null,null,null,null,null,null,null,null,null,null,null,"United States dollar","USD"]
[null,null,null,null,null,null,null,null,null,null,null,null,null,null,null,null,null,null,null,null,null,null,null,null,null,null,null,null,null,null,null,null,null,null,null,null,null,null,null,null,null,"CFP franc","XPF"]
[null,null,null,null,null,null,null,null,null,null,null,null,null,null,null,null,null,null,null,null,null,null,null,null,null,null,null,null,null,null,null,null,null,null,null,null,null,null,null,null,null,"Yemeni rial","YER"]
[null,null,null,null,null,null,null,null,null,null,null,null,null,null,null,null,null,null,null,null,null,null,null,null,null,null,null,null,null,null,null,null,null,null,null,null,null,null,null,null,null,"Zambian kwacha","ZMW"]
[null,null,null,null,null,null,null,null,null,null,null,null,null,null,null,null,null,null,null,null,null,null,null,null,null,null,null,null,null,null,null,null,null,null,null,null,null,null,null,null,null,"United States dollar","USD"]